{"text_format":"1","workbook":"xlsx","n_sheets":12,"sheets":["Einleitung","Anleitung","Eingangsbilanz","Verbrauchererfassung","Gesamtverbrauch","Messmittel","Energieeinsparprogramm","Faktoren","Rechner","template","template_activity","FormulaTemplate"],"not_rendered":{"charts":4,"images":3,"macros":1,"external_links":0,"defined_names":35,"comments":5,"pivot_tables":0},"unopened":[],"bounds":{"document_bytes":16777216,"sheet_cells":100000,"rows_first":2000,"rows_last":500,"rows_between":2000,"halvings":0,"cell_chars":16384,"cell_head_chars":4096},"cells_cut":0,"cells_raw":0,"read":"whole","date_system":"1900"}

{"sheet":"Einleitung","index":0,"n_rows":14,"n_cols":3,"rows_kept":14,"cut":false,"hidden":false,"merged":[]}
[null,null,"Version 3.2 - 11.11.2020"]
[]
[null,"Energieverbrauch-Erfassungs-Tool - V3"]
[null,"Schrittweise Erfassung Ihrer Energieverbräuche und Ist-Analyse der Verbraucher"]
[]
[null,"Dieses Berechnungswerkzeug unterstützt Sie bei der Erfassung eingesetzter Energieträger und deren Nutzung durch verschiedene Energieverbraucher.\nDieses Tool ist kostenlos und soll Sie und Ihr Unternehmen bei der Erfassung und Bewertung der energetischen Situation unterstützen. Es kann Ihnen beim Aufbau eines Energiemanagementsystems nach ISO 50001 helfen und beliebig erweitert werden. Zusätzlich kann es zur Nachweisführung im Rahmen der Spitzenausgleich-Effizienzsystemverordnung (SpaEfV) verwendet werden. Die Tabellen sind ebenfalls für die DIN EN 16247/ ISO 50002 eine Hilfestellung.\nWeiterführende Informationen erhalten Sie im GUTcert \"Leitfaden zum effizienten Energiemanagement nach \nISO 50001\". "]
[null,"Ihre Ansprechpartnerin\nEnergiemanagement:\nLisa Ziersch\nTelefon: +49 30 2332021-18\neMail: lisa.ziersch@gut-cert.de"]
[]
[null,"Disclaimer"]
[null,"Dieses Tool wurde mit äußerster Sorgfalt erstellt und getestet.\nDie Copyrights liegen ausschließlich bei der GUTcert GmbH - sind jedoch zur kostenlosen Nutzung und individuellen Anpassung freigegeben. Für Aktualität, Vollständigkeit, Korrektheit oder Qualität wird jedoch keine Gewähr übernommen. Haftungsansprüche für Schäden materieller oder immaterieller Art, die durch die Nutzung oder Nichtnutzung des Programms verursacht werden, sind grundsätzlich ausgeschlossen.\nDie Emissionsfaktoren entsprechen dem aktuellen Stand der Wissenschaft (05 2011). Für die Korrektheit der Emissionsfaktoren sind die jeweiligen Herausgeber verantwortlich."]
[]
[null,"www.gut-cert.de"]
[null,"GUT Certifizierungsgesellschaft für Managementsysteme mbH\nUmweltgutachter\nEichenstraße 3b\nD - 12435 Berlin"]
[null,"Geschäftsführer: Prof. Dr.-Ing. Jan Uwe Lieback, Berlin, Amtsgericht Charlottenburg, HRB 64544, USt-ID-Nr. DE 190888348"]

{"sheet":"Anleitung","index":1,"n_rows":61,"n_cols":4,"rows_kept":61,"cut":false,"hidden":false,"merged":[]}
[null,null,{"$f":"Einleitung!$C$1","v":"Version 3.2 - 11.11.2020"}]
[]
[null,"Anleitung und Beschreibung des Tools"]
[]
[null,"A: Allgemeines"]
[]
[null,"1. Office","Das Tool erfordert Office 2010 oder höher."]
[]
[null,"2. Makros","Das Tool enthält sogenannte Makros, die von der GUTcert signiert wurden.\nDas bedeutet, dass die Makros nur funktionieren, wenn Sie sich ein Zertifikat von der Gutcert Webseite heruntergeladen und auf Ihrem Computer installiert haben. Dies erfordert nur wenige Maus-Klicks.\nEin Zertifikat ist eine kleine Datei, die sicherstellen soll, dass nur unveränderte GUTcert Makros gestartet werden. Dies erhöht Ihre und unsere Sicherheit.\nDas Zertifikat und weitere Informationen finden Sie hier:"]
[null,null,"https://www.gut-cert.de/service/office-makro-zertifikat-installieren"]
[]
[null,"3. Blattschutz","Alle Arbeitsblätter sind gesperrt, damit Sie nur  Eintragungen in den für die Benutzung benötigten Felder machen können und eine unabsichtliche Veränderung aller anderen Zellen ausgeschlossen ist. \nEbenfalls gesperrt ist in der Regel das Hinzufügen oder Löschen von Spalten und Zeilen. Gibt es Spalten, die sie nicht benötigen, so können Sie diese gerne ausblenden."]
[null,null,"Möchten Sie einzelne Arbeitsblätter darüber hinaus anpassen, so lesen Sie bitte das Kapitel  D: Modifikation."]
[]
[null,"4. Hilfe","Mit der Seiten-HILFE (blaue HILFE-Buttons) erhalten Sie spezifische Hinweise zur Bedienung der jeweiligen Seite.\nProbieren Sie es einfach hier aus -->"]
[]
[null,"B: Übersicht"]
[]
[null,null,"Das Energieerfassungstool dient\n- der Erfassung aller Energieträger in Ihrem Betrieb, deren spezifische Kosten und Kohlendioxid-Emissionen\n- der Erfassung aller Verbraucher mit deren individuellem Verbrauch, Kosten und Kohlendioxid-Emissionen sowie eine ganze Reihe weitere Informationen zu den Verbrauchern wie Kapazität, Abwärme, etc.\n- sowie der Erfassung aller Messmittel, mit deren spezifischen Daten wie Kalibrierung, Eichung, Baujahr, etc.\n\nDarüber hinaus enthält das Energieerfassungstool auch einen Vorschlag für das Energieeinsparprogramm sowie Aktionspläne."]
[]
[null,"C: Kurzanleitung"]
[]
[null,null,"Es gibt im Energieerfassungstool zwei Hauptseiten, in die Eintragungen vorzunehmen sind:\n1. Eingangsbilanz (Erfassung aller Energieträger)\n2. Verbrauchererfassung (Erfassung aller Verbraucher)"]
[]
[null,"1. Eingangsbilanz","Gehen Sie auf das Blatt Eingangsbilanz und fügen Sie alle von Ihren Unternehmen bezogenen Energieträger der Tabelle hinzu. Für jeden Energieträger wird dabei ein eigenes Tabellenblatt erzeugt.\n\nTragen Sie anschließend die Bezugsmenge und die Kosten pro KWh für jeden Energieträger ein. Unterhalb der Haupttabelle befindet sich für jeden Energieträger eine monatliche Verbrauchstabelle. Hier können Sie die Verbräuche monatsweise eintragen, die dann in der Haupttabelle summiert werden. Sie können die Monatstabellen aber auch ignorieren und den Jahresverbrauch direkt in die obere Tabelle eintragen (siehe Bild).\nUm von einem Verbrauchswert (z.B. 100l Heizöl) die Kilowattstunden zu ermitteln, können Sie gerne unseren Rechner benutzen.\n\nBevor Sie jedem Energieträger die entsprechenden Messmittel zuweisen können, müssen Sie diese vorher in der Messmittelliste erfasst haben."]
[]
[]
[null,"2. Erfassung der Verbraucher","Gehen Sie nun auf das Blatt Verbrauchererfassung und tragen Sie alle Verbraucher ein.\nJedem Verbraucher können Sie nun die in der Eingangsbilanz erfassten Energieträger zuordnen, sowie den jeweiligen Verbrauch und das entsprechende Messmittel (soweit Sie dieses vorher in der Messmittelliste eingetragen haben).\n\nAn dieser Stelle können auch alle weiteren Verbraucher-Informationen wie Kapazität, Abwärme, etc. eingetragen werden.\n\nAn die Schaltfläche Verbraucher in Energieträger-Tabellen übertragen knüpft sich eine der Hauptfunktionen des Energieerfassungstools. Bei diesem Vorgang werden alle Verbraucher aus der Verbrauchererfassung in die jeweiligen Energieträgertabellen (orange) übertragen.\nBeispiel: Benötigt der Verbraucher: \"Schmelzofen\" sowohl Strom als auch Erdgas, so wird der selbe Verbraucher mit dem entsprechenden Gasverbrauch einmal in der Erdgas-Tabelle gelistet und mit dem entsprechenden Stromverbrauch noch einmal in der Strom-Tabelle.\nHier lässt sich auch überprüfen, ob es Abweichungen gibt zwischen der Menge der bezogenen Energie eines Energieträgers und der Summe aller gemessenen Verbräuche."]
[]
[]
[null,"3. Gesamtverbrauch","Auf der Seite Gesamtverbrauch erhalten Sie noch einmal eine Übersicht über den Gesamtverbrauch aller ihrer Verbraucher (quer durch alle Energiearten).\nHier können Sie noch einmal den Gesamtverbrauch mit den tatsächlich erfassten Messungen vergleichen, um einen Überblick zu erhalten, wie gut Sie in Sachen Verbraucher-Erfassung aufgestellt sind."]
[]
[null,"4. Messmittel","Auf die Messmittelliste wird sowohl bei der Eingangsbilanz als auch bei der Verbrauchererfassung zugegriffen. Es bleibt Ihnen überlassen, ob Sie diese zuerst ausfüllen oder nach und nach, je nach Bedarf."]
[]
[null,"5. Emissions-faktoren","Die CO2 Emissionen aller Energieträger werden mit Hilfe der Emissionstabelle errechnet. Hier sind bereits Standardwerte eingetragen, die sie auch ändern können. In diesem Reiter können Sie  zusätzlich eigenen Energieträger durch Ergänzung in der Tabelle hinzufügen.\nWichtig: Haben Sie eigene Energieträger eingetragen, die nicht in unserer Tabelle enthalten sind, so müssen sie für diese auch eigene Emissionsfaktoren eintragen, wenn Sie an einer Emissionsberechnung interessiert sind. "]
[]
[null,"D: Modifikation"]
[]
[null,null,"Alle Arbeitsblätter des Energieerfassungstool sind grundsätzlich geschützt (Blattschutz ist aktiviert). Welche Dinge auf einem Arbeitsblatt gesperrt sind, ist jedoch von Blatt zu Blatt unterschiedlich."]
[]
[null,"Grundsätzlich erlaubt","Grundsätzlich erlaubt auf allen Arbeitsblättern ist:\n- das Aus- und Einblenden von Zeilen und Spalten\n- das Ändern der Breite von Spalten und Zeilen\n- das Ändern der Zellformate (Zahlenformate, Textgröße, -farbe, -formatierung, Zellfarben, -rahmen, etc.)\n\nErlaubt ist auch das Hinzufügen neuer Arbeitsblätter (z.B. für weitere Tabellen, Notizen, etc.).\n"]
[]
[null,"Grundsätzlich verboten","Grundsätzlich Verboten ist das Löschen oder Umbenennen von Arbeitsblättern sowie das Ändern der Farbe der Reiter der Arbeitsblätter (grün und orange).\n\nEbenfalls verboten auf (fast) allen Arbeitsblättern ist:\n- das Hinzufügen von Spalten und in den meisten Fällen auch das Hinzufügen von Zeilen\n- sowie natürlich das Beschreiben gesperrter Zellen (vor allem das Ändern von Tabellenüberschriften!)."]
[]
[null,"Ich möchte etwas verbotenes tun!","Wenn Sie an unkritischen Stellen eine Seite verändern möchten, z.B. ein Kommentarfeld, eine Zeilen oder Spalten einfügen, dann können Sie das tun, nachdem der Blattschutz aufgehoben wurde. Voraussetzung ist dafür, daß Sie über gute Excel-Kenntnisse verfügen.\nWas eine unkritische Stelle ist, erfahren Sie in der Seiten-HILFE (blaue HILFE Buttons). Unter dem Reiter \"Modifikationen\" werden die Grenzen des Machbaren, die für jedes Blatt unterschiedlich sind, erläutert.\n\nGrundsätzlich vermeiden sollten Sie weiterhin:\n- das Ändern der Tabellenüberschriften (z.B.Spalte  \"Verbraucher\" in \"Geräte\").\n- das Umbenennen der Arbeitsblätter oder das Ändern der Reiterfarbe (Grün/orange)\nIm Einzelfall gilt natürlich immer \"learning by doing\". Was funktioniert, ist auch erlaubt.\n\nMit den \"Grenzen des Machbaren\" sind hier alle Änderungen gemeint, die keine Änderung der Programmierung erfordern. VBA Entwicklern steht es natürlich frei, auch diese Grenzen zu überschreiten und das Tool nach Belieben abzuändern. Wichtig ist jedoch, daß die GUTcert als ursprünglicher Autor immer genannt wird."]
[]
[null,"Blattschutz","Über das Excel-Menü \"Überprüfen/ Blattschutz aufheben\" können Sie den Blattschutz für jedes Blatt einzeln aufheben.\n\nWas Sie jedoch nie machen sollten, ist: den Blattschutz wieder von Hand zu aktivieren!\nDas ist auch nicht nötig, denn:\nDer Blattschutz wird jedes Mal automatisch beim Öffnen der Excel-Datei durch ein Skript gesetzt!\n\nSollten Sie doch einmal aus Versehen den Blattschutz manuell gesetzt haben, so hilft das einfache Schließen und erneute Öffnen der Datei.\n\nMöchten Sie den Blattschutz dauerhaft deaktivieren, so können Sie folgende Checkbox  anklicken:"]
[null,"Blattschutz aufgehoben!",true]
[]
[]
[null,"Worksheet","Bedienung","Modifikation"]
[null,"Tab01_Intro","","Diese Tabelle kann ohne Einschränkungen verändert werden.\r\n\r\n\r\n\r\n\r\n\r\n\r\n-------------------------------------------------------------------------\r\nModifikationen erfordern die Aufhebung des Blattschutzes.\r\nLesen Sie vorher immer in der \"Anleitung\" den Punkt \"D: Modifikation\"."]
[null,"Tab02_Help","\r\nHier stehen Hinweise zur Bedienung der jeweiligen Seite.\r\n\r\nKlicken Sie auch oben auf den Reiter \"Modifikation\"!","Hier stehen Hinweise dazu, wie Sie die Seite ( nach Aufheben des Blattschutzes) individuell anpassen können, ohne die Funktionalität zu beeinträchtigen.\r\n\r\nTipp:\r\nDiese Hilfetexte können Sie auch verändern. Jede Veränderung eines Hilfe-Textes  wird gespeichert.\r\nZeilenumbruch erzeugen Sie mit  mit Strg + Eingabe (Return)\r\n\r\nDie Texte für die Seiten-HILFE (also diese Texte) stehen auf diesem Blatt in ein paar ausgeblendeten Zeilen unterhalb der Anleitung.\r\n\r\n\r\n\r\n\r\n\r\n-------------------------------------------------------------------------\r\nModifikationen erfordern die Aufhebung des Blattschutzes.\r\nLesen Sie vorher immer in der \"Anleitung\" den Punkt \"D: Modifikation\"."]
[null,"Tab03_Balance","1. Hinzufügen eines Energieträgers\r\nWählen Sie dazu einen Energieträger aus der Liste aus ODER schreiben Sie eine Bezeichnung Ihrer Wahl in das Feld (max 17 Buchstaben) und fügen ihn mit dem orangenen Button der Liste hinzu.\r\n\r\nFür den Fall, dass Sie einen Namen eingeben, der nicht in der Liste steht, so müssen Sie auch im Arbeitsblatt Emissionsfaktoren diesen Energieträger hinzufügen, wenn Sie an der Ermittlung der CO2-Werte interessiert sind. Fehlt ein entsprechender Wert so erscheint stattdessen ein \"nv\" (für \"nicht vorhanden\").\r\n\r\n2. Tragen Sie in die untere Tabelle die Bezugsmengen und die Kosten  für jeden Energieträger ein.\r\nScrollen Sie ganz nach unten, zu der Monatsübersicht, wenn Sie den Verbrauch monatsweise eintragen wollen!\r\nSollten Ihre Verbrauchsdaten nicht in kWh, sondern in GJ, Nm³ oder Litern vorliegen, finden Sie unter \"Rechner\" eine Umrechnungshilfe.\r\n\r\n3. Weisen Sie jedem Energieträger das entsprechende Messsystem zu (so vorhanden/ optional).\r\nDies erfordert jedoch, daß Sie die entsprechenden Messsysteme zuerst im Arbeitsblatt \"Messmittelliste\" eingetragen haben.\r\n\r\nWechseln Sie abschließend zur Seite \"Verbrauchererfassung\".","Unproblematisch ist:\r\n- das Hinzufügen oder Löschen von Spalten rechts und links der Tabelle\r\n- das Hinzufügen oder Löschen von Zeilen ober- und unterhalb der Tabelle\r\n\r\nNatürlich steht es Ihnen frei, die Diagramme zu löschen, zu ändern oder eigene hinzuzufügen.\r\n\r\nUnterlassen sollten Sie:\r\n- das Hinzufügen von Spalten innerhalb der Tabelle\r\n- das Hinzufügen von Zeilen innerhalb der Tabelle (dafür gibt es den \"Energieträger hinzufügen\" Button)\r\n\r\nAchtung: Die letzte Zeile der Tabelle ist ausgeblendet und darf nicht gelöscht werden!\r\n\r\n\r\n-------------------------------------------------------------------------\r\nModifikationen erfordern die Aufhebung des Blattschutzes.\r\nLesen Sie vorher immer in der \"Anleitung\" den Punkt \"D: Modifikation\"."]
[null,"Tab04_Loads","1. Hinzufügen der Verbraucher (Spalte C-E)\r\nTragen Sie bitte Ihre Verbraucher und/oder Unterverbraucher ein. Die 3-teilige Struktur (Verbraucher/Unterverbraucher/Kennung) ist nur ein Vorschlag. Es reicht, wenn (je Verbraucher/ je Zeile) in einer der Spalten etwas eingetragen wird. (Nicht benötigte Spalten können Sie auch mit den üblichen Excel-Mitteln ausblenden.)\r\nDie laufende Nummer (erste Spalte) wird automatisch erzeugt.\r\n\r\n2. Hinzufügen der Verbraucherinformationen (Spalte F-J)\r\nHier können Sie weitere Informationen zu Ihren Verbrauchern erfassen (optional). Diese Spalten können jederzeit mit Hilfe der entsprechenden Checkbox ausgeblendet werden.\r\n\r\n3. Erfassung des Energieverbrauches\r\nTragen Sie nun die Energieträger und den entsprechenden Verbrauch für jeden Verbraucher ein.\r\nDes weiteren können Sie für je Energieträger ein Messmittel (Messgerät) angeben, insofern Sie es vorher in der Messmittelliste erfaßt haben.\r\n\r\n4. Verbraucher in Energieträgertabellen übertragen\r\nFür jeden Energieträger, den Sie in der Eingangsbilanz erfasst haben, wurde ein Arbeitsblatt erzeugt. Durch Klick auf den Button \r\n\"Verbraucher in Energieträgertabellen übertragen\" geschieht genaus das.\r\nDie ist ein Schritt, den Sie auch gerne mehrfach tun können. Sie müssen also nicht damit warten, bis die Liste der Energieträger vollständig ist. Die Verbraucherliste in den Energieträgertabellen, werden jedes Mal neu erzeugt.\r\n\r\nWICHTIG: Bei jeder Änderung (z.B. beim Verbrauch) müssen Sie die Verbraucher erneut in die Energieträger-Tabellen übertragen. Die Zahlen werden nicht automatisch angepaßt.\r\n\r\nHinzufügen neuer Zeilen:\r\nSie können den Button \"Zeile hinzufügen\" benutzen, um am Ende der Tabelle eine neue Leerzeile einzufügen. Sie können auch gerne \"von Hand\", d.h. mit den üblichen Excel-Mitteln an beliebiger Stelle INNERHALB der Tabelle Zeilen hinzufügen oder veschieben.\r\nWichtig ist folgendes: Die laufende Nummer wird jedes Mal neu erzeugt und zählt immer von 1 abwärts. Verschieben Sie also den Verbraucher Nr 7 eine Zweile nach oben, so wird er zum Verbraucher Nr 6 ( es sei denn sie löschen die Formel in der ersten Spalte und Nummerieren von Hand).\r\n\r\nVerschiebt man Zellen (oder Zeilen) und ÜBERSCHREIBT den Zielbereich, so kann die Optik negativ beeinträchtigt werden, außerdem wird die Formel in Spalte 1 gelöscht. Deshalb wird davon abgeraten.","Unproblematisch ist:\r\n- das Hinzufügen oder Löschen von Spalten rechts und links der Tabelle\r\n\r\nAußnahmsweise können Sie hier auch nach Bedarf INNERHALB der Tabelle Zeilen hinzufügen, löschen oder verschieben und zwar OHNE Aufhebung des Blattschutzes.\r\n\r\nAusnahmsweise können Sie hier im Bereich der \"Verbraucherinfos\" (Spalte F-J) auch Spalten löschen oder neue einfügen.\r\nAlle anderen Bereiche sind tabu.\r\n\r\nWenn Sie die automatische Nummerierung in der ersten Spalte stört, können Sie die Formeln auch gerne durch feste Zahlen ersetzen. Diese ist übrigends nicht gesperrt und kann auch ohne Aufhebung des Blattschutzes gelöscht oder verändert werden.\r\n\r\nSortieren:\r\nVon einer Aktivierung der Sortierfunktion für diese Tabelle wird abgeraten (obwohl technisch möglich). Weil aber die Verbrauchernummer jedes Mal neu generiert wird, würde die ursprüngliche Reihenfolge bei Anwendung einer Sortierfunktion verloren gehen (es sei denn, Sie haben diese durch eine fixe Zahl ersetzt).\r\n\r\n-------------------------------------------------------------------------\r\nModifikationen erfordern die Aufhebung des Blattschutzes.\r\nLesen Sie vorher immer in der \"Anleitung\" den Punkt \"D: Modifikation\"."]
[null,"Tab05_Consumption","In diesem Blatt sind keine Eintragungen vorzunehmen.\r\n\r\nHier werden noch einmal alle Verbraucher mit ihrem jeweiligen Gesamtverbrauch (also quer durch alle Energieträger) gelistet. \r\n\r\nDurch den Vergleich des Gesamtverbrauchs aller Energieträger (Bezugsmenge) mit der Summe des  gemessenen Verbrauchs der einzelnen Verbraucher, sieht man gut, wo es noch Lücken in der Verbrauchserfassung gibt.\r\n\r\nWICHTIG: Die Tabelle selbst ist NICHT schreibgeschützt, weil sonst das Sortieren nicht funktionieren würde. Daher bitte Vorsicht mit den Formeln und auch die Spaltenüberschriften dürfen nicht geändert werden.\r\nDie (pop up) Kommentare im Tabellenkopf erläutern die einzelnen Spalten.\r\n\r\nSie können gerne die Sortier- und Filterfunktionen benutzen, um die Verbraucher in eine übersichtliche Darstellung zu bringen. Die Nummer in der ersten Tabellenspalte entspricht dabei der Nummer des Verbrauchers in der \"Verbrauchererfassung\".\r\n\r\nDie Tabelle wird jedes Mal automatisch aktualisiert, sobald sich die Anzahl der Zeilen in der \"Verbrauchererfassung\" geändert hat.","Unproblematisch ist:\r\n- das Hinzufügen oder Löschen von Spalten rechts und links der Tabelle\r\n- das Hinzufügen oder Löschen von Zeilen ober- und unterhalb der Tabelle\r\n\r\nUnterlassen sollten Sie:\r\n- das Hinzufügen von Spalten innerhalb der Tabelle\r\n- das Hinzufügen von Zeilen innerhalb der Tabelle\r\n\r\nDie Zeilen dieser Tabelle werden jedes Mal automatisch angepaßt, sobald sich die Anzahl der Zeilen in der Tabelle \"Verbrauchererfassung\" geändert hat.\r\n\r\nAchtung:\r\nZeile 10 ist ausgeblendet und wird für die Aktualisierung der Tabelle benötigt!\r\n\r\n\r\n-------------------------------------------------------------------------\r\nModifikationen erfordern die Aufhebung des Blattschutzes.\r\nLesen Sie vorher immer in der \"Anleitung\" den Punkt \"D: Modifikation\"."]
[null,"Tab06_Factors","Die Berechnung der CO2 Emissionen erfolgt voreingestellt mit Literaturwerten.\r\n\r\nSollten Ihnen spezifische Emissionsfaktoren vorliegen, und Sie möchten die Berechnung lieber mit diesen Werten durchführen, tragen Sie diese bitte in die entsprechenden GRÜNEN Zellen ein. \r\nWerden die spezifischen Faktoren wieder gelöscht, erfolgt die Berechnung wieder mit den Literaturwerten.\r\n\r\nNeue Energieträger, die noch nicht in der Liste enthalten sind, können Sie unten in die letzte Zeile eintragen zusammen mit den entsprechenden Emissionsfaktoren.\r\nDiese erscheinen dann ebenfalls im DropDown Menü (Energieträgerliste) auf der \"Eingangsbilanz\" Seite.\r\n","Unproblematisch ist:\r\n- das generelle Hinzufügen oder Löschen von Zeilen (auch innerhalb der Tabelle)\r\n\r\nSpalten können VOR oder NACH der Tabelle NICHT jedoch INNERHALB der Tabelle hinzugefügt oder gelöscht werden.\r\n\r\nZu Beachten ist jedoch, daß sich die Liste der Energieträger (DropDown Menü) in der \"Eingangsbilanz\" aus DIESER Tabelle speist.\r\n\r\nDurch das Löschen von Zeilen kann dadurch die Auswahl an Energieträgern verringert werden. Sie könnnen die Energieträger auch umbenennen, jedoch sollte kein Name länger als 17 Buchstaben sein.\r\n\r\nNatürlich können Sie auch die Literaturwerte ändern, wenn Sie möchten.\r\n\r\nAchtung: Die letzte Zeile der Tabelle ist ausgeblendet und darf nicht gelöscht werden!\r\n\r\n-------------------------------------------------------------------------\r\nModifikationen erfordern die Aufhebung des Blattschutzes.\r\nLesen Sie vorher immer in der \"Anleitung\" den Punkt \"D: Modifikation\"."]
[null,"Tab07_Means","In diesem Tabellenblatt werden die Messmittel/ Messgeräte erfaßt.\r\n\r\nAuf diese Liste wird sowohl in der \"Eingangsbilanz\" (Messmittel je Energieträger), als auch bei der \"Verbrauchererfassung\" (Messmittel je Verbraucher und Energieträger) zugegriffen.\r\n\r\n[Energieträger]: Sie müssen kein Element der Liste auswählen, sondern können auch eigene Begriffe eintragen.\r\n[Messprinzip]: z.B. Tankpeilung, Durchflussmessung, etc.\r\n[geeicht/kalibriert]: Datum eintragen\r\n[Grad der Genauigkeit]: Das DropDown Menü speist sich aus den Werten im gelben Bereich speist. Diese sind nur Vorschläge und können nach Bedarf verändert/ergänzt werden.\r\n\r\nTipp:\r\nWenn Sie viele Messmittel haben, empfiehlt es sich die Liste zu sortieren (z.B. nach Energieträgern). Dadurch werden auch die DropDown Menüs in der \"Eingangsbilanz\" und bei der \"Verbrauchererfassung\" ebenfalls übersichtlicher.","Unproblematisch ist:\r\n- das Hinzufügen oder Löschen von Spalten rechts und links der Tabelle\r\n\r\nNeue Spalten dürfen Sie nur HINTER der LETZTEN Spalte (Grad der Genauigkeit\" tun.\r\n\r\nNeue Zeilen können nach Bedarf an beliebiger Stelle eingefügt werden.\r\n\r\nSpaltennamen dürfen NICHT geändert werden.\r\n\r\n\r\n\r\n-------------------------------------------------------------------------\r\nModifikationen erfordern die Aufhebung des Blattschutzes.\r\nLesen Sie vorher immer in der \"Anleitung\" den Punkt \"D: Modifikation\"."]
[null,"Tab08_Activities","Das Energie-Einsparprogramm ist die Auflistung aller Aktionspläne.\r\n\r\nIn diese Tabelle wird (ausser in der Spalte Priorität) nichts direkt eingetragen, denn fast alle Zellen enthalten Formeln!\r\n\r\nDie Daten werden vielmehr in die Aktionspläne eingetragen, die Sie mit dem Button \"Neuer Aktionsplan\" erzeugen können.\r\n","Bei dieser Tabelle sollte möglichst gar nichts geändert werden!\r\n\r\n\r\nUnd Vorsicht: Fast alle Zellen enthalten Formeln!"]
[null,"Tab09_Calculator","Mit Hilfe der Umrechnungstabelle können Sie Verbrauchswerte, die Ihnen als Volumen (Liter), Masse (Tonnen) oder Joule vorliegen, in Kilowattstunden umrechnen.\r\n\r\nSie können sich dabei der Literaturwerte bedienen, die wir für Sie zusammengestellt haben.\r\n\r\nEinige der Berechnung erfordern weitere Angaben, z.B. zur Dichte der Stoffe.","Diese Tabelle kann ohne Einschränkungen verändert werden.\r\n\r\n\r\n\r\n\r\n\r\n\r\n-------------------------------------------------------------------------\r\nModifikationen erfordern die Aufhebung des Blattschutzes.\r\nLesen Sie vorher immer in der \"Anleitung\" den Punkt \"D: Modifikation\"."]
[null,"TabZ_template","In diesem Blatt sind keine Eintragungen vorzunehmen.\r\n\r\nHier werden alle Verbraucher gelistet, die DIESEN Energieträger benötigen (wie in der \"Verbrauchererfassung\" angegeben).\r\n\r\nWICHTIG: Die Tabelle selbst ist nicht schreibgeschützt, weil sonst das Sortieren nicht funktionieren würde. Daher bitte Vorsicht mit den Formeln und auch die Spaltenüberschriften dürfen nicht geändert werden.\r\nDie (pop up) Kommentare im Tabellenkopf erläuteren die einzelnen Spalten.\r\n\r\nAnhand der Summe der \"Anteile am Gesamtverbrauch\" erkennen Sie, ob der gemessene Verbrauch dem Gesamtverbrauch (laut\"Eingangsbilanz\") DIESES Energieträgers entspricht, oder ob es in der Messung noch Lücken gibt.\r\nLiegt der Wert bei 100%, so haben Sie alle Verbraucher lückenlos erfasst.\r\n\r\nMit Hilfe der Sortierfunktion können Sie die Liste nach Wunsch sortieren, z.B. nach Höhe des Verbrauchs etc.","Die Energieträger-Tabellen sind Kopien des verstecken Arbeitsblattes \"template\".\r\n\r\nHier Änderungen vorzunehmen ist (von Formatierungsänderungen o.ä. abgesehen) wenig sinnvoll.\r\n\r\nAuch kleinere Änderungen können schnell die Funktionsfähigkeit beeinträchtigen, deshalb ist davon abzuraten."]

{"sheet":"Eingangsbilanz","index":2,"n_rows":1048038,"n_cols":11,"rows_kept":4500,"cut":true,"hidden":false,"merged":[[2,7,3,9]],"bounds":{"rows_first":2000,"rows_last":500,"rows_between":2000,"halvings":0}}
[null,null,null,null,null,null,null,null,null,{"$f":"Einleitung!$C$1","v":"Version 3.2 - 11.11.2020"}]
[]
[null,"Erfassung der Eingangsenergien für das Jahr:",null,null,null,2018,null,"Ihre Anmerkungen…"]
[]
[]
[null,null,null,null,null,null,1]
[]
[null,"eingesetzte Energie/ Energieträger","Bezugsmenge\n[kWh/a]","Kosten pro kWh\n[€/ kWh]","Anteil am Gesamt-verbrauch","Kosten\n[€]","Kosten-anteil","CO2 Emissionen [t]","CO2-Anteil","Messsystem oder alternative Art der Erfassung und Analyse","Grad der Genauigkeit/ Kalibrierung"]
[null,null,null,null,{"$f":"IF(C$11>0,C9/C$11,\"\")","v":""},{"$f":"C9*D9","v":0},{"$f":"IF(F$11>0,F9/F$11,\"\")","v":""},{"$f":"IFERROR(VLOOKUP(B9,EFaktoren,5,FALSE)*C9*0.001,\"nv\")","v":"nv"},{"$f":"IF(AND(H$11>0, ISNUMBER(H9)),H9/H$11,\"nv\")","v":"nv"},null,{"$f":"IFERROR(VLOOKUP(J9,Tab_Measurement[],6,FALSE),\"\")","v":""}]
[null,null,null,null,{"$f":"IF(C$11>0,C10/C$11,\"\")","v":""},{"$f":"C10*D10","v":0},{"$f":"IF(F$11>0,F10/F$11,\"\")","v":""},{"$f":"IFERROR(VLOOKUP(B10,EFaktoren,5,FALSE)*C10*0.001,\"nv\")","v":"nv"},{"$f":"IF(AND(H$11>0, ISNUMBER(H10)),H10/H$11,\"nv\")","v":"nv"},null,{"$f":"IFERROR(VLOOKUP(J10,Tab_Measurement[],6,FALSE),\"\")","v":""}]
[null,"Summe",{"$f":"SUM(C9:C10)","v":0},null,{"$f":"SUM(E9:E10)","v":0},{"$f":"SUM(F9:F10)","v":0},{"$f":"SUM(G9:G10)","v":0},{"$f":"SUM(H9:H10)","v":0},{"$f":"SUM(I9:I10)","v":0}]
[]
[]
[]
[]
[]
[]
[null,"Verbrauch nach Monat und Energieträger in kWh"]
[]
[null,"Monat","energieträger"]
[null,"Januar"]
[null,"Februar"]
[null,"März"]
[null,"April"]
[null,"Mai"]
[null,"Juni"]
[null,"Juli"]
[null,"August"]
[null,"September"]
[null,"Oktober"]
[null,"November"]
[null,"Dezember"]
[null,"Summe",{"$f":"SUM(C21:C32)","v":0}]
[]
[]
[]
[]
[]
[]
[]
[]
[]
[]
[]
[]
[]
[]
[]
[]
[]
[]
[]
[]
[]
[]
[]
[]
[]
[]
[]
[]
[]
[]
[]
[]
[]
[]
[]
[]
[]
[]
[]
[]
[]
[]
[]
[]
[]
[]
[]
[]
[]
[]
[]
[]
[]
[]
[]
[]
[]
[]
[]
[]
[]
[]
[]
[]
[]
[]
[]
[]
[]
[]
[]
[]
[]
[]
[]
[]
[]
[]
[]
[]
[]
[]
[]
[]
[]
[]
[]
[]
[]
[]
[]
[]
[]
[]
[]
[]
[]
[]
[]
[]
[]
[]
[]
[]
[]
[]
[]
[]
[]
[]
[]
[]
[]
[]
[]
[]
[]
[]
[]
[]
[]
[]
[]
[]
[]
[]
[]
[]
[]
[]
[]
[]
[]
[]
[]
[]
[]
[]
[]
[]
[]
[]
[]
[]
[]
[]
[]
[]
[]
[]
[]
[]
[]
[]
[]
[]
[]
[]
[]
[]
[]
[]
[]
[]
[]
[]
[]
[]
[]
[]
[]
[]
[]
[]
[]
[]
[]
[]
[]
[]
[]
[]
[]
[]
[]
[]
[]
[]
[]
[]
[]
[]
[]
[]
[]
[]
[]
[]
[]
[]
[]
[]
[]
[]
[]
[]
[]
[]
[]
[]
[]
[]
[]
[]
[]
[]
[]
[]
[]
[]
[]
[]
[]
[]
[]
[]
[]
[]
[]
[]
[]
[]
[]
[]
[]
[]
[]
[]
[]
[]
[]
[]
[]
[]
[]
[]
[]
[]
[]
[]
[]
[]
[]
[]
[]
[]
[]
[]
[]
[]
[]
[]
[]
[]
[]
[]
[]
[]
[]
[]
[]
[]
[]
[]
[]
[]
[]
[]
[]
[]
[]
[]
[]
[]
[]
[]
[]
[]
[]
[]
[]
[]
[]
[]
[]
[]
[]
[]
[]
[]
[]
[]
[]
[]
[]
[]
[]
[]
[]
[]
[]
[]
[]
[]
[]
[]
[]
[]
[]
[]
[]
[]
[]
[]
[]
[]
[]
[]
[]
[]
[]
[]
[]
[]
[]
[]
[]
[]
[]
[]
[]
[]
[]
[]
[]
[]
[]
[]
[]
[]
[]
[]
[]
[]
[]
[]
[]
[]
[]
[]
[]
[]
[]
[]
[]
[]
[]
[]
[]
[]
[]
[]
[]
[]
[]
[]
[]
[]
[]
[]
[]
[]
[]
[]
[]
[]
[]
[]
[]
[]
[]
[]
[]
[]
[]
[]
[]
[]
[]
[]
[]
[]
[]
[]
[]
[]
[]
[]
[]
[]
[]
[]
[]
[]
[]
[]
[]
[]
[]
[]
[]
[]
[]
[]
[]
[]
[]
[]
[]
[]
[]
[]
[]
[]
[]
[]
[]
[]
[]
[]
[]
[]
[]
[]
[]
[]
[]
[]
[]
[]
[]
[]
[]
[]
[]
[]
[]
[]
[]
[]
[]
[]
[]
[]
[]
[]
[]
[]
[]
[]
[]
[]
[]
[]
[]
[]
[]
[]
[]
[]
[]
[]
[]
[]
[]
[]
[]
[]
[]
[]
[]
[]
[]
[]
[]
[]
[]
[]
[]
[]
[]
[]
[]
[]
[]
[]
[]
[]
[]
[]
[]
[]
[]
[]
[]
[]
[]
[]
[]
[]
[]
[]
[]
[]
[]
[]
[]
[]
[]
[]
[]
[]
[]
[]
[]
[]
[]
[]
[]
[]
[]
[]
[]
[]
[]
[]
[]
[]
[]
[]
[]
[]
[]
[]
[]
[]
[]
[]
[]
[]
[]
[]
[]
[]
[]
[]
[]
[]
[]
[]
[]
[]
[]
[]
[]
[]
[]
[]
[]
[]
[]
[]
[]
[]
[]
[]
[]
[]
[]
[]
[]
[]
[]
[]
[]
[]
[]
[]
[]
[]
[]
[]
[]
[]
[]
[]
[]
[]
[]
[]
[]
[]
[]
[]
[]
[]
[]
[]
[]
[]
[]
[]
[]
[]
[]
[]
[]
[]
[]
[]
[]
[]
[]
[]
[]
[]
[]
[]
[]
[]
[]
[]
[]
[]
[]
[]
[]
[]
[]
[]
[]
[]
[]
[]
[]
[]
[]
[]
[]
[]
[]
[]
[]
[]
[]
[]
[]
[]
[]
[]
[]
[]
[]
[]
[]
[]
[]
[]
[]
[]
[]
[]
[]
[]
[]
[]
[]
[]
[]
[]
[]
[]
[]
[]
[]
[]
[]
[]
[]
[]
[]
[]
[]
[]
[]
[]
[]
[]
[]
[]
[]
[]
[]
[]
[]
[]
[]
[]
[]
[]
[]
[]
[]
[]
[]
[]
[]
[]
[]
[]
[]
[]
[]
[]
[]
[]
[]
[]
[]
[]
[]
[]
[]
[]
[]
[]
[]
[]
[]
[]
[]
[]
[]
[]
[]
[]
[]
[]
[]
[]
[]
[]
[]
[]
[]
[]
[]
[]
[]
[]
[]
[]
[]
[]
[]
[]
[]
[]
[]
[]
[]
[]
[]
[]
[]
[]
[]
[]
[]
[]
[]
[]
[]
[]
[]
[]
[]
[]
[]
[]
[]
[]
[]
[]
[]
[]
[]
[]
[]
[]
[]
[]
[]
[]
[]
[]
[]
[]
[]
[]
[]
[]
[]
[]
[]
[]
[]
[]
[]
[]
[]
[]
[]
[]
[]
[]
[]
[]
[]
[]
[]
[]
[]
[]
[]
[]
[]
[]
[]
[]
[]
[]
[]
[]
[]
[]
[]
[]
[]
[]
[]
[]
[]
[]
[]
[]
[]
[]
[]
[]
[]
[]
[]
[]
[]
[]
[]
[]
[]
[]
[]
[]
[]
[]
[]
[]
[]
[]
[]
[]
[]
[]
[]
[]
[]
[]
[]
[]
[]
[]
[]
[]
[]
[]
[]
[]
[]
[]
[]
[]
[]
[]
[]
[]
[]
[]
[]
[]
[]
[]
[]
[]
[]
[]
[]
[]
[]
[]
[]
[]
[]
[]
[]
[]
[]
[]
[]
[]
[]
[]
[]
[]
[]
[]
[]
[]
[]
[]
[]
[]
[]
[]
[]
[]
[]
[]
[]
[]
[]
[]
[]
[]
[]
[]
[]
[]
[]
[]
[]
[]
[]
[]
[]
[]
[]
[]
[]
[]
[]
[]
[]
[]
[]
[]
[]
[]
[]
[]
[]
[]
[]
[]
[]
[]
[]
[]
[]
[]
[]
[]
[]
[]
[]
[]
[]
[]
[]
[]
[]
[]
[]
[]
[]
[]
[]
[]
[]
[]
[]
[]
[]
[]
[]
[]
[]
[]
[]
[]
[]
[]
[]
[]
[]
[]
[]
[]
[]
[]
[]
[]
[]
[]
[]
[]
[]
[]
[]
[]
[]
[]
[]
[]
[]
[]
[]
[]
[]
[]
[]
[]
[]
[]
[]
[]
[]
[]
[]
[]
[]
[]
[]
[]
[]
[]
[]
[]
[]
[]
[]
[]
[]
[]
[]
[]
[]
[]
[]
[]
[]
[]
[]
[]
[]
[]
[]
[]
[]
[]
[]
[]
[]
[]
[]
[]
[]
[]
[]
[]
[]
[]
[]
[]
[]
[]
[]
[]
[]
[]
[]
[]
[]
[]
[]
[]
[]
[]
[]
[]
[]
[]
[]
[]
[]
[]
[]
[]
[]
[]
[]
[]
[]
[]
[]
[]
[]
[]
[]
[]
[]
[]
[]
[]
[]
[]
[]
[]
[]
[]
[]
[]
[]
[]
[]
[]
[]
[]
[]
[]
[]
[]
[]
[]
[]
[]
[]
[]
[]
[]
[]
[]
[]
[]
[]
[]
[]
[]
[]
[]
[]
[]
[]
[]
[]
[]
[]
[]
[]
[]
[]
[]
[]
[]
[]
[]
[]
[]
[]
[]
[]
[]
[]
[]
[]
[]
[]
[]
[]
[]
[]
[]
[]
[]
[]
[]
[]
[]
[]
[]
[]
[]
[]
[]
[]
[]
[]
[]
[]
[]
[]
[]
[]
[]
[]
[]
[]
[]
[]
[]
[]
[]
[]
[]
[]
[]
[]
[]
[]
[]
[]
[]
[]
[]
[]
[]
[]
[]
[]
[]
[]
[]
[]
[]
[]
[]
[]
[]
[]
[]
[]
[]
[]
[]
[]
[]
[]
[]
[]
[]
[]
[]
[]
[]
[]
[]
[]
[]
[]
[]
[]
[]
[]
[]
[]
[]
[]
[]
[]
[]
[]
[]
[]
[]
[]
[]
[]
[]
[]
[]
[]
[]
[]
[]
[]
[]
[]
[]
[]
[]
[]
[]
[]
[]
[]
[]
[]
[]
[]
[]
[]
[]
[]
[]
[]
[]
[]
[]
[]
[]
[]
[]
[]
[]
[]
[]
[]
[]
[]
[]
[]
[]
[]
[]
[]
[]
[]
[]
[]
[]
[]
[]
[]
[]
[]
[]
[]
[]
[]
[]
[]
[]
[]
[]
[]
[]
[]
[]
[]
[]
[]
[]
[]
[]
[]
[]
[]
[]
[]
[]
[]
[]
[]
[]
[]
[]
[]
[]
[]
[]
[]
[]
[]
[]
[]
[]
[]
[]
[]
[]
[]
[]
[]
[]
[]
[]
[]
[]
[]
[]
[]
[]
[]
[]
[]
[]
[]
[]
[]
[]
[]
[]
[]
[]
[]
[]
[]
[]
[]
[]
[]
[]
[]
[]
[]
[]
[]
[]
[]
[]
[]
[]
[]
[]
[]
[]
[]
[]
[]
[]
[]
[]
[]
[]
[]
[]
[]
[]
[]
[]
[]
[]
[]
[]
[]
[]
[]
[]
[]
[]
[]
[]
[]
[]
[]
[]
[]
[]
[]
[]
[]
[]
[]
[]
[]
[]
[]
[]
[]
[]
[]
[]
[]
[]
[]
[]
[]
[]
[]
[]
[]
[]
[]
[]
[]
[]
[]
[]
[]
[]
[]
[]
[]
[]
[]
[]
[]
[]
[]
[]
[]
[]
[]
[]
[]
[]
[]
[]
[]
[]
[]
[]
[]
[]
[]
[]
[]
[]
[]
[]
[]
[]
[]
[]
[]
[]
[]
[]
[]
[]
[]
[]
[]
[]
[]
[]
[]
[]
[]
[]
[]
[]
[]
[]
[]
[]
[]
[]
[]
[]
[]
[]
[]
[]
[]
[]
[]
[]
[]
[]
[]
[]
[]
[]
[]
[]
[]
[]
[]
[]
[]
[]
[]
[]
[]
[]
[]
[]
[]
[]
[]
[]
[]
[]
[]
[]
[]
[]
[]
[]
[]
[]
[]
[]
[]
[]
[]
[]
[]
[]
[]
[]
[]
[]
[]
[]
[]
[]
[]
[]
[]
[]
[]
[]
[]
[]
[]
[]
[]
[]
[]
[]
[]
[]
[]
[]
[]
[]
[]
[]
[]
[]
[]
[]
[]
[]
[]
[]
[]
[]
[]
[]
[]
[]
[]
[]
[]
[]
[]
[]
[]
[]
[]
[]
[]
[]
[]
[]
[]
[]
[]
[]
[]
[]
[]
[]
[]
[]
[]
[]
[]
[]
[]
[]
[]
[]
[]
[]
[]
[]
[]
[]
[]
[]
[]
[]
[]
[]
[]
[]
[]
[]
[]
[]
[]
[]
[]
[]
[]
[]
[]
[]
[]
[]
[]
[]
[]
[]
[]
[]
[]
[]
[]
[]
[]
[]
[]
[]
[]
[]
[]
[]
[]
[]
[]
[]
[]
[]
[]
[]
[]
[]
[]
[]
[]
[]
[]
[]
[]
[]
[]
[]
[]
[]
[]
[]
[]
[]
[]
[]
[]
[]
[]
[]
[]
[]
[]
[]
[]
[]
[]
[]
[]
[]
[]
[]
[]
[]
[]
[]
[]
[]
[]
[]
[]
[]
[]
[]
[]
[]
[]
[]
[]
[]
[]
[]
[]
[]
[]
[]
[]
[]
[]
[]
[]
[]
[]
[]
[]
[]
[]
[]
[]
[]
[]
[]
[]
[]
[]
[]
[]
[]
[]
[]
[]
[]
[]
[]
[]
[]
[]
[]
[]
[]
[]
[]
[]
[]
[]
[]
[]
[]
[]
[]
[]
[]
[]
[]
[]
[]
[]
[]
[]
[]
[]
[]
[]
[]
[]
[]
[]
[]
[]
[]
[]
[]
[]
[]
[]
[]
[]
[]
[]
[]
[]
[]
[]
[]
[]
[]
[]
[]
[]
[]
[]
[]
[]
[]
[]
[]
[]
[]
[]
[]
[]
[]
[]
[]
[]
[]
[]
[]
[]
[]
[]
[]
[]
[]
[]
[]
[]
[]
[]
[]
[]
[]
[]
[]
[]
[]
[]
[]
[]
[]
[]
[]
[]
[]
[]
[]
[]
[]
[]
[]
[]
[]
[]
[]
[]
[]
[]
[]
[]
[]
[]
[]
[]
[]
[]
[]
[]
[]
[]
[]
[]
[]
[]
[]
[]
[]
[]
[]
[]
[]
[]
[]
[]
[]
[]
[]
[]
[]
[]
[]
[]
[]
[]
[]
[]
[]
[]
[]
[]
[]
[]
[]
[]
[]
[]
[]
[]
[]
[]
[]
[]
[]
[]
[]
[]
[]
[]
[]
[]
[]
[]
[]
[]
[]
[]
[]
[]
[]
[]
[]
[]
[]
[]
[]
[]
[]
[]
[]
[]
[]
[]
[]
[]
[]
[]
[]
[]
[]
[]
[]
[]
[]
[]
[]
[]
[]
[]
[]
[]
[]
[]
[]
[]
[]
[]
[]
[]
[]
[]
[]
[]
[]
[]
[]
[]
[]
[]
[]
[]
[]
[]
[]
[]
[]
[]
[]
[]
[]
[]
[]
[]
[]
[]
[]
[]
[]
[]
[]
[]
[]
[]
[]
[]
[]
[]
[]
[]
[]
[]
[]
[]
[]
[]
[]
[]
[]
[]
[]
[]
[]
[]
[]
[]
[]
[]
[]
[]
[]
[]
[]
[]
[]
[]
[]
[]
[]
[]
[]
[]
[]
[]
[]
[]
[]
[]
[]
[]
[]
[]
[]
[]
[]
[]
[]
[]
[]
[]
[]
[]
[]
[]
[]
[]
[]
[]
[]
[]
[]
[]
[]
[]
[]
[]
[]
[]
[]
[]
[]
[]
[]
[]
[]
[]
[]
[]
[]
[]
[]
[]
[]
[]
[]
[]
[]
[]
[]
[]
[]
[]
[]
[]
[]
[]
[]
[]
[]
[]
[]
[]
[]
[]
[]
[]
[]
[]
[]
[]
[]
[]
[]
[]
[]
[]
[]
[]
[]
[]
[]
[]
[]
[]
[]
[]
[]
[]
[]
[]
[]
[]
[]
[]
[]
[]
[]
[]
[]
[]
[]
[]
[]
[]
[]
[]
[]
[]
[]
[]
[]
[]
[]
[]
[]
[]
[]
[]
[]
[]
[]
[]
[]
[]
[]
[]
[]
[]
[]
[]
[]
[]
[]
[]
[]
[]
[]
[]
[]
[]
[]
[]
[]
[]
[]
[]
[]
[]
[]
[]
[]
[]
[]
[]
[]
[]
[]
[]
[]
[]
[]
[]
[]
[]
[]
[]
[]
[]
[]
[]
[]
[]
[]
[]
[]
[]
[]
[]
[]
[]
[]
[]
[]
[]
[]
[]
[]
[]
[]
[]
[]
[]
[]
[]
[]
[]
[]
[]
[]
[]
[]
[]
[]
[]
[]
[]
[]
[]
[]
[]
[]
[]
[]
[]
[]
[]
[]
[]
[]
[]
[]
[]
[]
[]
[]
[]
[]
[]
[]
[]
[]
[]
[]
[]
[]
[]
[]
[]
[]
[]
[]
[]
[]
[]
[]
[]
[]
[]
[]
[]
[]
[]
[]
[]
[]
[]
[]
[]
[]
[]
[]
[]
[]
[]
[]
[]
[]
[]
[]
[]
[]
[]
[]
[]
[]
[]
[]
[]
[]
[]
[]
[]
[]
[]
[]
[]
[]
[]
[]
[]
[]
[]
[]
[]
[]
[]
[]
[]
[]
[]
[]
[]
[]
[]
[]
[]
[]
[]
[]
[]
[]
[]
[]
[]
[]
[]
[]
[]
[]
[]
[]
[]
[]
[]
[]
[]
[]
[]
[]
[]
[]
[]
[]
[]
[]
[]
[]
[]
[]
[]
[]
[]
[]
[]
[]
[]
[]
[]
[]
[]
[]
[]
[]
[]
[]
[]
[]
[]
[]
[]
[]
[]
[]
[]
[]
[]
[]
[]
[]
[]
[]
[]
[]
[]
[]
[]
[]
[]
[]
[]
[]
[]
[]
[]
[]
[]
[]
[]
[]
[]
[]
[]
[]
[]
[]
[]
[]
[]
[]
[]
[]
[]
[]
[]
[]
[]
[]
[]
[]
[]
[]
[]
[]
[]
[]
[]
[]
[]
[]
[]
[]
[]
[]
[]
[]
[]
[]
[]
[]
[]
[]
[]
[]
[]
[]
[]
[]
[]
[]
[]
[]
[]
[]
[]
[]
[]
[]
[]
[]
[]
[]
[]
[]
[]
[]
[]
[]
[]
[]
[]
[]
[]
[]
[]
[]
[]
[]
[]
[]
[]
[]
[]
[]
[]
[]
[]
[]
[]
[]
[]
[]
[]
[]
[]
[]
[]
[]
[]
[]
[]
[]
[]
[]
[]
[]
[]
[]
[]
[]
[]
[]
[]
[]
[]
[]
[]
[]
[]
[]
[]
[]
[]
[]
[]
[]
[]
[]
[]
[]
[]
[]
[]
[]
[]
[]
[]
[]
[]
[]
[]
[]
[]
[]
[]
[]
[]
[]
[]
[]
[]
[]
[]
[]
[]
[]
[]
[]
[]
[]
[]
[]
[]
[]
[]
[]
[]
[]
[]
[]
[]
[]
[]
[]
[]
[]
[]
[]
[]
[]
[]
[]
[]
[]
[]
[]
[]
[]
[]
[]
[]
[]
[]
[]
[]
[]
[]
[]
[]
[]
[]
[]
[]
[]
[]
[]
[]
[]
[]
[]
[]
[]
[]
[]
[]
[]
[]
[]
[]
[]
[]
[]
[]
[]
[]
[]
[]
[]
[]
[]
[]
[]
[]
[]
[]
[]
[]
[]
[]
[]
[]
[]
[]
[]
[]
[]
[]
[]
[]
[]
[]
[]
[]
[]
[]
[]
[]
[]
[]
[]
[]
[]
[]
[]
[]
[]
[]
[]
[]
[]
[]
[]
[]
[]
[]
[]
[]
[]
[]
[]
[]
[]
[]
[]
[]
[]
[]
[]
[]
[]
[]
[]
[]
[]
[]
[]
[]
[]
[]
[]
[]
[]
[]
[]
[]
[]
[]
[]
[]
[]
[]
[]
[]
[]
[]
[]
[]
[]
[]
[]
[]
[]
[]
[]
[]
[]
[]
[]
[]
[]
[]
[]
[]
[]
[]
[]
[]
[]
[]
[]
[]
[]
[]
[]
[]
[]
[]
[]
[]
[]
[]
[]
[]
[]
[]
[]
[]
[]
[]
[]
[]
[]
[]
[]
[]
[]
[]
[]
[]
[]
[]
[]
[]
[]
[]
[]
[]
[]
[]
[]
[]
[]
[]
[]
[]
[]
[]
[]
[]
[]
[]
[]
[]
[]
[]
[]
[]
[]
[]
[]
[]
[]
[]
[]
[]
[]
[]
[]
[]
[]
[]
[]
[]
[]
[]
[]
[]
[]
[]
[]
[]
[]
[]
[]
[]
[]
[]
[]
[]
[]
[]
[]
[]
[]
[]
[]
[]
[]
[]
[]
[]
[]
[]
[]
[]
[]
[]
[]
[]
[]
[]
[]
[]
[]
[]
[]
[]
[]
[]
[]
[]
[]
[]
[]
[]
[]
[]
[]
[]
[]
[]
[]
[]
[]
[]
[]
[]
[]
[]
[]
[]
[]
[]
[]
[]
[]
[]
[]
[]
[]
[]
[]
[]
[]
[]
[]
[]
[]
[]
[]
[]
[]
[]
[]
[]
[]
[]
[]
[]
[]
[]
[]
[]
[]
[]
[]
[]
[]
[]
[]
[]
[]
[]
[]
[]
[]
[]
[]
[]
[]
[]
[]
[]
[]
[]
[]
[]
[]
[]
[]
[]
[]
[]
[]
[]
[]
[]
[]
[]
[]
[]
[]
[]
[]
[]
[]
[]
[]
[]
[]
[]
[]
[]
[]
[]
[]
[]
[]
[]
[]
[]
[]
[]
[]
[]
[]
[]
[]
[]
[]
[]
[]
[]
[]
[]
[]
[]
[]
[]
[]
[]
[]
[]
[]
[]
[]
[]
[]
[]
[]
[]
[]
[]
[]
[]
[]
[]
[]
[]
[]
[]
[]
[]
[]
[]
[]
[]
[]
[]
[]
[]
[]
[]
[]
[]
[]
[]
[]
[]
[]
[]
[]
[]
[]
[]
[]
[]
[]
[]
[]
[]
[]
[]
[]
[]
[]
[]
[]
[]
[]
[]
[]
[]
[]
[]
[]
[]
[]
[]
[]
[]
[]
[]
[]
[]
[]
[]
[]
[]
[]
[]
[]
[]
[]
[]
[]
[]
[]
[]
[]
[]
[]
[]
[]
[]
[]
[]
[]
[]
[]
[]
[]
[]
[]
[]
[]
[]
[]
[]
[]
[]
[]
[]
[]
[]
[]
[]
[]
[]
[]
[]
[]
[]
[]
[]
[]
[]
[]
[]
[]
[]
[]
[]
[]
[]
[]
[]
[]
[]
[]
[]
[]
[]
[]
[]
[]
[]
[]
[]
[]
[]
[]
[]
[]
[]
[]
[]
[]
[]
[]
[]
[]
[]
[]
[]
[]
[]
[]
[]
[]
[]
[]
[]
[]
[]
[]
[]
[]
[]
[]
[]
[]
[]
[]
[]
[]
[]
[]
[]
[]
[]
[]
[]
[]
[]
[]
[]
[]
[]
[]
[]
[]
[]
[]
[]
[]
[]
[]
[]
[]
[]
[]
[]
[]
[]
[]
[]
[]
[]
[]
[]
[]
[]
[]
[]
[]
[]
[]
[]
[]
[]
[]
[]
[]
[]
[]
[]
[]
[]
[]
[]
[]
[]
[]
[]
[]
[]
[]
[]
[]
[]
[]
[]
[]
[]
[]
[]
[]
[]
[]
[]
[]
[]
[]
[]
[]
[]
[]
[]
[]
[]
[]
[]
[]
[]
[]
[]
[]
[]
[]
[]
[]
[]
[]
[]
[]
[]
[]
[]
[]
[]
[]
[]
[]
[]
[]
[]
[]
[]
[]
[]
[]
[]
[]
[]
[]
[]
[]
[]
[]
[]
[]
[]
[]
[]
[]
[]
[]
[]
[]
[]
[]
[]
[]
[]
[]
[]
[]
[]
[]
[]
[]
[]
[]
[]
[]
[]
[]
[]
[]
[]
[]
[]
[]
[]
[]
[]
[]
[]
[]
[]
[]
[]
[]
[]
[]
[]
[]
[]
[]
[]
[]
[]
[]
[]
[]
[]
[]
[]
[]
[]
[]
[]
[]
[]
[]
[]
[]
[]
[]
[]
[]
[]
[]
[]
[]
[]
[]
[]
[]
[]
[]
[]
[]
[]
[]
[]
[]
[]
[]
[]
[]
[]
[]
[]
[]
[]
[]
[]
[]
[]
[]
[]
[]
[]
[]
[]
[]
[]
[]
[]
[]
[]
[]
[]
[]
[]
[]
[]
[]
[]
[]
[]
[]
[]
[]
[]
[]
[]
[]
[]
[]
[]
[]
[]
[]
[]
[]
[]
[]
[]
[]
[]
[]
[]
[]
[]
[]
[]
[]
[]
[]
[]
[]
[]
[]
[]
[]
[]
[]
[]
[]
[]
[]
[]
[]
[]
[]
[]
[]
[]
[]
[]
[]
[]
[]
[]
[]
[]
[]
[]
[]
[]
[]
[]
[]
[]
[]
[]
[]
[]
[]
[]
[]
[]
[]
[]
[]
[]
[]
[]
[]
[]
[]
[]
[]
[]
[]
[]
[]
[]
[]
[]
[]
[]
[]
[]
[]
[]
[]
[]
[]
[]
[]
[]
[]
[]
[]
[]
[]
[]
[]
[]
[]
[]
[]
[]
[]
[]
[]
[]
[]
[]
[]
[]
[]
[]
[]
[]
[]
[]
[]
[]
[]
[]
[]
[]
[]
[]
[]
[]
[]
[]
[]
[]
[]
[]
[]
[]
[]
[]
[]
[]
[]
[]
[]
[]
[]
[]
[]
[]
[]
[]
[]
[]
[]
[]
[]
[]
[]
[]
[]
[]
[]
[]
[]
[]
[]
[]
[]
[]
[]
[]
[]
[]
[]
[]
[]
[]
[]
[]
[]
[]
[]
[]
[]
[]
[]
[]
[]
[]
[]
[]
[]
[]
[]
[]
[]
[]
[]
[]
[]
[]
[]
[]
[]
[]
[]
[]
[]
[]
[]
[]
[]
[]
[]
[]
[]
[]
[]
[]
[]
[]
[]
[]
[]
[]
[]
[]
[]
[]
[]
[]
[]
[]
[]
[]
[]
[]
[]
[]
[]
[]
[]
[]
[]
[]
[]
[]
[]
[]
[]
[]
[]
[]
[]
[]
[]
[]
[]
[]
[]
[]
[]
[]
[]
[]
[]
[]
[]
[]
[]
[]
[]
[]
[]
[]
[]
[]
[]
[]
[]
[]
[]
[]
[]
[]
[]
[]
[]
[]
[]
[]
[]
[]
[]
[]
[]
[]
[]
[]
[]
[]
[]
[]
[]
[]
[]
[]
[]
[]
[]
[]
[]
[]
[]
[]
[]
[]
[]
[]
[]
[]
[]
[]
[]
[]
[]
[]
[]
[]
[]
[]
[]
[]
[]
[]
[]
[]
[]
[]
[]
[]
[]
[]
[]
[]
[]
[]
[]
[]
[]
[]
[]
[]
[]
[]
[]
[]
[]
[]
[]
[]
[]
[]
[]
[]
[]
[]
[]
[]
[]
[]
[]
[]
[]
[]
[]
[]
[]
[]
[]
[]
[]
[]
[]
[]
[]
[]
[]
[]
[]
[]
[]
[]
[]
[]
[]
[]
[]
[]
[]
[]
[]
[]
[]
[]
[]
[]
[]
[]
[]
[]
[]
[]
[]
[]
[]
[]
[]
[]
[]
[]
[]
[]
[]
[]
[]
[]
[]
[]
[]
[]
[]
[]
[]
[]
[]
[]
[]
[]
[]
[]
[]
[]
[]
[]
[]
[]
[]
[]
[]
[]
[]
[]
[]
[]
[]
[]
[]
[]
[]
[]
[]
[]
[]
[]
[]
[]
[]
[]
[]
[]
[]
[]
[]
[]
[]
[]
[]
[]
[]
[]
[]
[]
[]
[]
[]
[]
[]
[]
[]
[]
[]
[]
[]
[]
[]
[]
[]
[]
[]
[]
[]
[]
[]
[]
[]
[]
[]
[]
[]
[]
[]
[]
[]
[]
[]
[]
[]
[]
[]
[]
[]
[]
[]
[]
[]
[]
[]
[]
[]
[]
[]
[]
[]
[]
[]
[]
[]
[]
[]
[]
[]
[]
[]
[]
[]
[]
[]
[]
[]
[]
[]
[]
[]
[]
[]
[]
[]
[]
[]
[]
[]
[]
[]
[]
[]
[]
[]
[]
[]
[]
[]
[]
[]
[]
[]
[]
[]
[]
[]
[]
[]
[]
[]
[]
[]
[]
[]
[]
[]
[]
[]
[]
[]
[]
[]
[]
[]
[]
[]
[]
[]
[]
[]
[]
[]
[]
[]
[]
[]
[]
[]
[]
[]
[]
[]
[]
[]
[]
[]
[]
[]
[]
[]
[]
[]
[]
[]
[]
[]
[]
[]
[]
[]
[]
[]
[]
[]
[]
[]
[]
[]
[]
[]
[]
[]
[]
[]
[]
[]
[]
[]
[]
[]
[]
[]
[]
[]
[]
[]
[]
[]
[]
[]
[]
[]
[]
[]
[]
[]
[]
[]
[]
[]
[]
[]
[]
[]
[]
[]
[]
[]
[]
[]
[]
[]
[]
[]
[]
[]
[]
[]
[]
[]
[]
[]
[]
[]
[]
[]
[]
[]
[]
[]
[]
[]
[]
[]
[]
[]
[]
[]
[]
[]
[]
[]
[]
[]
[]
[]
[]
[]
[]
[]
[]
[]
[]
[]
[]
[]
[]
[]
[]
[]
[]
[]
[]
[]
[]
[]
[]
[]
[]
[]
[]
[]
[]
[]
[]
[]
[]
[]
[]
[]
[]
[]
[]
[]
[]
[]
[]
[]
[]
[]
[]
[]
[]
[]
[]
[]
[]
[]
[]
[]
[]
[]
[]
[]
[]
[]
[]
[]
[]
[]
[]
[]
[]
[]
[]
[]
[]
[]
[]
[]
[]
[]
[]
[]
[]
[]
[]
[]
[]
[]
[]
[]
[]
[]
[]
[]
[]
[]
[]
[]
[]
[]
[]
[]
[]
[]
[]
[]
[]
[]
[]
[]
[]
[]
[]
[]
[]
[]
[]
[]
[]
[]
[]
[]
[]
[]
[]
[]
[]
[]
[]
[]
[]
[]
[]
[]
[]
[]
[]
[]
[]
[]
[]
[]
[]
[]
[]
[]
[]
[]
[]
[]
[]
[]
[]
[]
[]
[]
[]
[]
[]
[]
[]
[]
[]
[]
[]
[]
[]
[]
[]
[]
[null,"Erdgas L"]

{"sheet":"Verbrauchererfassung","index":3,"n_rows":23,"n_cols":35,"rows_kept":23,"cut":false,"hidden":false,"merged":[[5,26,5,28],[5,29,5,31],[5,32,5,34],[5,11,5,13],[5,14,5,16],[5,17,5,19],[5,20,5,22],[5,23,5,25]]}
[null,null,null,null,null,null,null,null,null,null,{"$f":"Einleitung!$C$1","v":"Version 3.2 - 11.11.2020"}]
[]
[null,"Erfassung der Verbraucher"]
[]
[]
[null,null,false,false,null,null,null,null,null,null,null,"1. Energieträger",null,null,"2. Energieträger",null,null,"3. Energieträger",null,null,"4. Energieträger",null,null,"5. Energieträger",null,null,"6. Energieträger",null,null,"7. Energieträger",null,null,"8. Energieträger"]
[null,"Nr","Verbraucher","Unterverbraucher","Kennung","SEU","Betriebszeit pro Jahr [h]","Leistungsaufnahme \nder Anlage [kW]\n(Kapazität)","Abwärme [kWh]\n(Temperaturniveau)","Baujahr","Sonstiges (z.B. Wartung)","Energieträger 1","Verbrauch  1 [kWh/a]","Messmittel 1","Energieträger 2","Verbrauch 2 [kWh/a]","Messmittel 2","Energieträger 3","Verbrauch 3 [kWh/a]","Messmittel 3","Energieträger 4","Verbrauch 4 [kWh/a]","Messmittel 4","Energieträger 5","Verbrauch 5 [kWh/a]","Messmittel 5","Energieträger 6","Verbrauch 6 [kWh/a]","Messmittel 6","Energieträger 7","Verbrauch 7 [kWh/a]","Messmittel 7","Energieträger 8","Verbrauch 8 [kWh/a]","Messmittel 8"]
[null,{"$f":"ROW()-ROW(Tab_Loads[[#Headers],[Nr]])","v":1}]
[null,{"$f":"ROW()-ROW(Tab_Loads[[#Headers],[Nr]])","v":2}]
[null,{"$f":"ROW()-ROW(Tab_Loads[[#Headers],[Nr]])","v":3}]
[null,{"$f":"ROW()-ROW(Tab_Loads[[#Headers],[Nr]])","v":4}]
[null,{"$f":"ROW()-ROW(Tab_Loads[[#Headers],[Nr]])","v":5}]
[null,{"$f":"ROW()-ROW(Tab_Loads[[#Headers],[Nr]])","v":6}]
[null,{"$f":"ROW()-ROW(Tab_Loads[[#Headers],[Nr]])","v":7}]
[null,{"$f":"ROW()-ROW(Tab_Loads[[#Headers],[Nr]])","v":8}]
[null,{"$f":"ROW()-ROW(Tab_Loads[[#Headers],[Nr]])","v":9}]
[null,{"$f":"ROW()-ROW(Tab_Loads[[#Headers],[Nr]])","v":10}]
[]
[]
[]
[null,"Zeilen können auch manuell (z.B. innerhalb der Tabelle) eingefügt werden (ganze Zeile auswählen und Strg \"+\" (Plus-Zeichen) drücken)."]
[null,"Zeilen innerhalb der Tabelle können auch nach Belieben gelöscht oder verschoben (Strg + Umschalt) werden."]
[null,"Vom Verschieben mit ÜBERSCHREIBEN von Zellen wird abgeraten."]

{"sheet":"Gesamtverbrauch","index":4,"n_rows":21,"n_cols":11,"rows_kept":21,"cut":false,"hidden":false,"merged":[]}
[null,null,null,null,null,null,null,null,null,null,{"$f":"Einleitung!$C$1","v":"Version 3.2 - 11.11.2020"}]
[]
[null,"Alle Verbraucher mit jeweiligem Gesamtverbrauch"]
[]
[null,null,null,null,null,"Verbrauch\n[kWh]",null,"Kosten\n[€]",null,"CO2 \n[t]"]
[null,null,null,null,"Gesamtenergie laut Eingangsbilanz:",{"$f":"Eingangsbilanz!C11","v":0},null,{"$f":"Eingangsbilanz!F11","v":0},null,{"$f":"Eingangsbilanz!H11","v":0}]
[null,null,null,null,"Differenz zur Verbrauchermessung:",{"$f":"F6-F9","v":0},null,{"$f":"H6-H9","v":0},null,{"$f":"IF(ISNUMBER(J6),J6-J9,\"nv\")","v":0}]
[]
[null,null,null,null,"Summe der Verbrauchermessung:",{"$f":"SUM(Tab_LoadsOverallConsumption[Verbrauch\n'[kWh']])","v":0},{"$f":"SUM(Tab_LoadsOverallConsumption[Anteil am Gesamt-verbrauch])","v":0},{"$f":"SUM(Tab_LoadsOverallConsumption[Kosten\n'[€']])","v":0},{"$f":"SUM(Tab_LoadsOverallConsumption[Kostenanteil])","v":0},{"$f":"SUM(Tab_LoadsOverallConsumption[CO2 \n'[t']])","v":0},{"$f":"SUM(Tab_LoadsOverallConsumption[CO2 - \nAnteil])","v":0}]
[null,{"$f":"Verbrauchererfassung!B6","v":0},{"$f":"Verbrauchererfassung!C6","v":false},{"$f":"Verbrauchererfassung!D6","v":false},{"$f":"Verbrauchererfassung!E6","v":0},{"$f":"SUM(Verbrauchererfassung!L6:AH6)","v":0},{"$f":"IF(ISERROR(Tab_LoadsOverallConsumption[[#This Row],[Verbrauch\n'[kWh']]]/F$6),0,Tab_LoadsOverallConsumption[[#This Row],[Verbrauch\n'[kWh']]]/F$6)","v":0},{"$f":"SUM(Verbrauchererfassung!M6 * IFERROR(VLOOKUP(Verbrauchererfassung!L6,EB_EnergyTable,3,FALSE),0),IFERROR(Verbrauchererfassung!P6 * VLOOKUP(Verbrauchererfassung!O6,EB_EnergyTable,3,FALSE),0),Verbrauchererfassung!S6 * IFERROR(VLOOKUP(Verbrauchererfassung!R6,EB_EnergyTable,3,FALSE),0),Verbrauchererfassung!V6 * IFERROR(VLOOKUP(Verbrauchererfassung!U6,EB_EnergyTable,3,FALSE),0),Verbrauchererfassung!Y6 * IFERROR(VLOOKUP(Verbrauchererfassung!X6,EB_EnergyTable,3,FALSE),0),Verbrauchererfassung!AB6 * IFERROR(VLOOKUP(Verbrauchererfassung!AA6,EB_EnergyTable,3,FALSE),0),Verbrauchererfassung!AE6 * IFERROR(VLOOKUP(Verbrauchererfassung!AD6,EB_EnergyTable,3,FALSE),0),Verbrauchererfassung!AH6 * IFERROR(VLOOKUP(Verbrauchererfassung!AG6,EB_EnergyTable,3,FALSE),0))","v":0},{"$f":"IF(ISERROR(Tab_LoadsOverallConsumption[[#This Row],[Kosten\n'[€']]]/H$6),0,Tab_LoadsOverallConsumption[[#This Row],[Kosten\n'[€']]]/H$6)","v":0},{"$f":"SUM(Verbrauchererfassung!M6*IFERROR(VLOOKUP(Verbrauchererfassung!L6,EFaktoren,5,FALSE),0),IFERROR(Verbrauchererfassung!P6*VLOOKUP(Verbrauchererfassung!O6,EFaktoren,5,FALSE),0),Verbrauchererfassung!S6*IFERROR(VLOOKUP(Verbrauchererfassung!R6,EFaktoren,5,FALSE),0),Verbrauchererfassung!V6*IFERROR(VLOOKUP(Verbrauchererfassung!U6,EFaktoren,5,FALSE),0),Verbrauchererfassung!Y6*IFERROR(VLOOKUP(Verbrauchererfassung!X6,EFaktoren,5,FALSE),0),Verbrauchererfassung!AB6*IFERROR(VLOOKUP(Verbrauchererfassung!AA6,EFaktoren,5,FALSE),0),Verbrauchererfassung!AE6*IFERROR(VLOOKUP(Verbrauchererfassung!AD6,EFaktoren,5,FALSE),0),Verbrauchererfassung!AH6*IFERROR(VLOOKUP(Verbrauchererfassung!AG6,EFaktoren,5,FALSE),0))*0.001","v":0},{"$f":"IF(ISERROR(Tab_LoadsOverallConsumption[[#This Row],[CO2 \n'[t']]]/J$6),\"nv\",Tab_LoadsOverallConsumption[[#This Row],[CO2 \n'[t']]]/J$6)","v":"nv"}]
[null,"Nr","Verbraucher","Unterverbraucher","Kennung","Verbrauch\n[kWh]","Anteil am Gesamt-verbrauch","Kosten\n[€]","Kostenanteil","CO2 \n[t]","CO2 - \nAnteil"]
[null,{"$f":"Verbrauchererfassung!B8","v":1},{"$f":"Verbrauchererfassung!C8","v":0},null,{"$f":"Verbrauchererfassung!D8","v":0},{"$f":"SUM(Verbrauchererfassung!L8:AH8)","v":0},{"$f":"IF(ISERROR(Tab_LoadsOverallConsumption[[#This Row],[Verbrauch\n'[kWh']]]/F$6),0,Tab_LoadsOverallConsumption[[#This Row],[Verbrauch\n'[kWh']]]/F$6)","v":0},{"$f":"SUM(Verbrauchererfassung!M8 * IFERROR(VLOOKUP(Verbrauchererfassung!L8,EB_EnergyTable,3,FALSE),0),IFERROR(Verbrauchererfassung!P8 * VLOOKUP(Verbrauchererfassung!O8,EB_EnergyTable,3,FALSE),0),Verbrauchererfassung!S8 * IFERROR(VLOOKUP(Verbrauchererfassung!R8,EB_EnergyTable,3,FALSE),0),Verbrauchererfassung!V8 * IFERROR(VLOOKUP(Verbrauchererfassung!U8,EB_EnergyTable,3,FALSE),0),Verbrauchererfassung!Y8 * IFERROR(VLOOKUP(Verbrauchererfassung!X8,EB_EnergyTable,3,FALSE),0),Verbrauchererfassung!AB8 * IFERROR(VLOOKUP(Verbrauchererfassung!AA8,EB_EnergyTable,3,FALSE),0),Verbrauchererfassung!AE8 * IFERROR(VLOOKUP(Verbrauchererfassung!AD8,EB_EnergyTable,3,FALSE),0),Verbrauchererfassung!AH8 * IFERROR(VLOOKUP(Verbrauchererfassung!AG8,EB_EnergyTable,3,FALSE),0))","v":0},{"$f":"IF(ISERROR(Tab_LoadsOverallConsumption[[#This Row],[Kosten\n'[€']]]/H$6),0,Tab_LoadsOverallConsumption[[#This Row],[Kosten\n'[€']]]/H$6)","v":0},{"$f":"SUM(Verbrauchererfassung!M8*IFERROR(VLOOKUP(Verbrauchererfassung!L8,EFaktoren,5,FALSE),0),IFERROR(Verbrauchererfassung!P8*VLOOKUP(Verbrauchererfassung!O8,EFaktoren,5,FALSE),0),Verbrauchererfassung!S8*IFERROR(VLOOKUP(Verbrauchererfassung!R8,EFaktoren,5,FALSE),0),Verbrauchererfassung!V8*IFERROR(VLOOKUP(Verbrauchererfassung!U8,EFaktoren,5,FALSE),0),Verbrauchererfassung!Y8*IFERROR(VLOOKUP(Verbrauchererfassung!X8,EFaktoren,5,FALSE),0),Verbrauchererfassung!AB8*IFERROR(VLOOKUP(Verbrauchererfassung!AA8,EFaktoren,5,FALSE),0),Verbrauchererfassung!AE8*IFERROR(VLOOKUP(Verbrauchererfassung!AD8,EFaktoren,5,FALSE),0),Verbrauchererfassung!AH8*IFERROR(VLOOKUP(Verbrauchererfassung!AG8,EFaktoren,5,FALSE),0))*0.001","v":0},{"$f":"IF(ISERROR(Tab_LoadsOverallConsumption[[#This Row],[CO2 \n'[t']]]/J$6),\"nv\",Tab_LoadsOverallConsumption[[#This Row],[CO2 \n'[t']]]/J$6)","v":"nv"}]
[null,{"$f":"Verbrauchererfassung!B9","v":2},{"$f":"Verbrauchererfassung!C9","v":0},null,{"$f":"Verbrauchererfassung!D9","v":0},{"$f":"SUM(Verbrauchererfassung!L9:AH9)","v":0},{"$f":"IF(ISERROR(Tab_LoadsOverallConsumption[[#This Row],[Verbrauch\n'[kWh']]]/F$6),0,Tab_LoadsOverallConsumption[[#This Row],[Verbrauch\n'[kWh']]]/F$6)","v":0},{"$f":"SUM(Verbrauchererfassung!M9 * IFERROR(VLOOKUP(Verbrauchererfassung!L9,EB_EnergyTable,3,FALSE),0),IFERROR(Verbrauchererfassung!P9 * VLOOKUP(Verbrauchererfassung!O9,EB_EnergyTable,3,FALSE),0),Verbrauchererfassung!S9 * IFERROR(VLOOKUP(Verbrauchererfassung!R9,EB_EnergyTable,3,FALSE),0),Verbrauchererfassung!V9 * IFERROR(VLOOKUP(Verbrauchererfassung!U9,EB_EnergyTable,3,FALSE),0),Verbrauchererfassung!Y9 * IFERROR(VLOOKUP(Verbrauchererfassung!X9,EB_EnergyTable,3,FALSE),0),Verbrauchererfassung!AB9 * IFERROR(VLOOKUP(Verbrauchererfassung!AA9,EB_EnergyTable,3,FALSE),0),Verbrauchererfassung!AE9 * IFERROR(VLOOKUP(Verbrauchererfassung!AD9,EB_EnergyTable,3,FALSE),0),Verbrauchererfassung!AH9 * IFERROR(VLOOKUP(Verbrauchererfassung!AG9,EB_EnergyTable,3,FALSE),0))","v":0},{"$f":"IF(ISERROR(Tab_LoadsOverallConsumption[[#This Row],[Kosten\n'[€']]]/H$6),0,Tab_LoadsOverallConsumption[[#This Row],[Kosten\n'[€']]]/H$6)","v":0},{"$f":"SUM(Verbrauchererfassung!M9*IFERROR(VLOOKUP(Verbrauchererfassung!L9,EFaktoren,5,FALSE),0),IFERROR(Verbrauchererfassung!P9*VLOOKUP(Verbrauchererfassung!O9,EFaktoren,5,FALSE),0),Verbrauchererfassung!S9*IFERROR(VLOOKUP(Verbrauchererfassung!R9,EFaktoren,5,FALSE),0),Verbrauchererfassung!V9*IFERROR(VLOOKUP(Verbrauchererfassung!U9,EFaktoren,5,FALSE),0),Verbrauchererfassung!Y9*IFERROR(VLOOKUP(Verbrauchererfassung!X9,EFaktoren,5,FALSE),0),Verbrauchererfassung!AB9*IFERROR(VLOOKUP(Verbrauchererfassung!AA9,EFaktoren,5,FALSE),0),Verbrauchererfassung!AE9*IFERROR(VLOOKUP(Verbrauchererfassung!AD9,EFaktoren,5,FALSE),0),Verbrauchererfassung!AH9*IFERROR(VLOOKUP(Verbrauchererfassung!AG9,EFaktoren,5,FALSE),0))*0.001","v":0},{"$f":"IF(ISERROR(Tab_LoadsOverallConsumption[[#This Row],[CO2 \n'[t']]]/J$6),\"nv\",Tab_LoadsOverallConsumption[[#This Row],[CO2 \n'[t']]]/J$6)","v":"nv"}]
[null,{"$f":"Verbrauchererfassung!B10","v":3},{"$f":"Verbrauchererfassung!C10","v":0},null,{"$f":"Verbrauchererfassung!D10","v":0},{"$f":"SUM(Verbrauchererfassung!L10:AH10)","v":0},{"$f":"IF(ISERROR(Tab_LoadsOverallConsumption[[#This Row],[Verbrauch\n'[kWh']]]/F$6),0,Tab_LoadsOverallConsumption[[#This Row],[Verbrauch\n'[kWh']]]/F$6)","v":0},{"$f":"SUM(Verbrauchererfassung!M10 * IFERROR(VLOOKUP(Verbrauchererfassung!L10,EB_EnergyTable,3,FALSE),0),IFERROR(Verbrauchererfassung!P10 * VLOOKUP(Verbrauchererfassung!O10,EB_EnergyTable,3,FALSE),0),Verbrauchererfassung!S10 * IFERROR(VLOOKUP(Verbrauchererfassung!R10,EB_EnergyTable,3,FALSE),0),Verbrauchererfassung!V10 * IFERROR(VLOOKUP(Verbrauchererfassung!U10,EB_EnergyTable,3,FALSE),0),Verbrauchererfassung!Y10 * IFERROR(VLOOKUP(Verbrauchererfassung!X10,EB_EnergyTable,3,FALSE),0),Verbrauchererfassung!AB10 * IFERROR(VLOOKUP(Verbrauchererfassung!AA10,EB_EnergyTable,3,FALSE),0),Verbrauchererfassung!AE10 * IFERROR(VLOOKUP(Verbrauchererfassung!AD10,EB_EnergyTable,3,FALSE),0),Verbrauchererfassung!AH10 * IFERROR(VLOOKUP(Verbrauchererfassung!AG10,EB_EnergyTable,3,FALSE),0))","v":0},{"$f":"IF(ISERROR(Tab_LoadsOverallConsumption[[#This Row],[Kosten\n'[€']]]/H$6),0,Tab_LoadsOverallConsumption[[#This Row],[Kosten\n'[€']]]/H$6)","v":0},{"$f":"SUM(Verbrauchererfassung!M10*IFERROR(VLOOKUP(Verbrauchererfassung!L10,EFaktoren,5,FALSE),0),IFERROR(Verbrauchererfassung!P10*VLOOKUP(Verbrauchererfassung!O10,EFaktoren,5,FALSE),0),Verbrauchererfassung!S10*IFERROR(VLOOKUP(Verbrauchererfassung!R10,EFaktoren,5,FALSE),0),Verbrauchererfassung!V10*IFERROR(VLOOKUP(Verbrauchererfassung!U10,EFaktoren,5,FALSE),0),Verbrauchererfassung!Y10*IFERROR(VLOOKUP(Verbrauchererfassung!X10,EFaktoren,5,FALSE),0),Verbrauchererfassung!AB10*IFERROR(VLOOKUP(Verbrauchererfassung!AA10,EFaktoren,5,FALSE),0),Verbrauchererfassung!AE10*IFERROR(VLOOKUP(Verbrauchererfassung!AD10,EFaktoren,5,FALSE),0),Verbrauchererfassung!AH10*IFERROR(VLOOKUP(Verbrauchererfassung!AG10,EFaktoren,5,FALSE),0))*0.001","v":0},{"$f":"IF(ISERROR(Tab_LoadsOverallConsumption[[#This Row],[CO2 \n'[t']]]/J$6),\"nv\",Tab_LoadsOverallConsumption[[#This Row],[CO2 \n'[t']]]/J$6)","v":"nv"}]
[null,{"$f":"Verbrauchererfassung!B11","v":4},{"$f":"Verbrauchererfassung!C11","v":0},null,{"$f":"Verbrauchererfassung!D11","v":0},{"$f":"SUM(Verbrauchererfassung!L11:AH11)","v":0},{"$f":"IF(ISERROR(Tab_LoadsOverallConsumption[[#This Row],[Verbrauch\n'[kWh']]]/F$6),0,Tab_LoadsOverallConsumption[[#This Row],[Verbrauch\n'[kWh']]]/F$6)","v":0},{"$f":"SUM(Verbrauchererfassung!M11 * IFERROR(VLOOKUP(Verbrauchererfassung!L11,EB_EnergyTable,3,FALSE),0),IFERROR(Verbrauchererfassung!P11 * VLOOKUP(Verbrauchererfassung!O11,EB_EnergyTable,3,FALSE),0),Verbrauchererfassung!S11 * IFERROR(VLOOKUP(Verbrauchererfassung!R11,EB_EnergyTable,3,FALSE),0),Verbrauchererfassung!V11 * IFERROR(VLOOKUP(Verbrauchererfassung!U11,EB_EnergyTable,3,FALSE),0),Verbrauchererfassung!Y11 * IFERROR(VLOOKUP(Verbrauchererfassung!X11,EB_EnergyTable,3,FALSE),0),Verbrauchererfassung!AB11 * IFERROR(VLOOKUP(Verbrauchererfassung!AA11,EB_EnergyTable,3,FALSE),0),Verbrauchererfassung!AE11 * IFERROR(VLOOKUP(Verbrauchererfassung!AD11,EB_EnergyTable,3,FALSE),0),Verbrauchererfassung!AH11 * IFERROR(VLOOKUP(Verbrauchererfassung!AG11,EB_EnergyTable,3,FALSE),0))","v":0},{"$f":"IF(ISERROR(Tab_LoadsOverallConsumption[[#This Row],[Kosten\n'[€']]]/H$6),0,Tab_LoadsOverallConsumption[[#This Row],[Kosten\n'[€']]]/H$6)","v":0},{"$f":"SUM(Verbrauchererfassung!M11*IFERROR(VLOOKUP(Verbrauchererfassung!L11,EFaktoren,5,FALSE),0),IFERROR(Verbrauchererfassung!P11*VLOOKUP(Verbrauchererfassung!O11,EFaktoren,5,FALSE),0),Verbrauchererfassung!S11*IFERROR(VLOOKUP(Verbrauchererfassung!R11,EFaktoren,5,FALSE),0),Verbrauchererfassung!V11*IFERROR(VLOOKUP(Verbrauchererfassung!U11,EFaktoren,5,FALSE),0),Verbrauchererfassung!Y11*IFERROR(VLOOKUP(Verbrauchererfassung!X11,EFaktoren,5,FALSE),0),Verbrauchererfassung!AB11*IFERROR(VLOOKUP(Verbrauchererfassung!AA11,EFaktoren,5,FALSE),0),Verbrauchererfassung!AE11*IFERROR(VLOOKUP(Verbrauchererfassung!AD11,EFaktoren,5,FALSE),0),Verbrauchererfassung!AH11*IFERROR(VLOOKUP(Verbrauchererfassung!AG11,EFaktoren,5,FALSE),0))*0.001","v":0},{"$f":"IF(ISERROR(Tab_LoadsOverallConsumption[[#This Row],[CO2 \n'[t']]]/J$6),\"nv\",Tab_LoadsOverallConsumption[[#This Row],[CO2 \n'[t']]]/J$6)","v":"nv"}]
[null,{"$f":"Verbrauchererfassung!B12","v":5},{"$f":"Verbrauchererfassung!C12","v":0},null,{"$f":"Verbrauchererfassung!D12","v":0},{"$f":"SUM(Verbrauchererfassung!L12:AH12)","v":0},{"$f":"IF(ISERROR(Tab_LoadsOverallConsumption[[#This Row],[Verbrauch\n'[kWh']]]/F$6),0,Tab_LoadsOverallConsumption[[#This Row],[Verbrauch\n'[kWh']]]/F$6)","v":0},{"$f":"SUM(Verbrauchererfassung!M12 * IFERROR(VLOOKUP(Verbrauchererfassung!L12,EB_EnergyTable,3,FALSE),0),IFERROR(Verbrauchererfassung!P12 * VLOOKUP(Verbrauchererfassung!O12,EB_EnergyTable,3,FALSE),0),Verbrauchererfassung!S12 * IFERROR(VLOOKUP(Verbrauchererfassung!R12,EB_EnergyTable,3,FALSE),0),Verbrauchererfassung!V12 * IFERROR(VLOOKUP(Verbrauchererfassung!U12,EB_EnergyTable,3,FALSE),0),Verbrauchererfassung!Y12 * IFERROR(VLOOKUP(Verbrauchererfassung!X12,EB_EnergyTable,3,FALSE),0),Verbrauchererfassung!AB12 * IFERROR(VLOOKUP(Verbrauchererfassung!AA12,EB_EnergyTable,3,FALSE),0),Verbrauchererfassung!AE12 * IFERROR(VLOOKUP(Verbrauchererfassung!AD12,EB_EnergyTable,3,FALSE),0),Verbrauchererfassung!AH12 * IFERROR(VLOOKUP(Verbrauchererfassung!AG12,EB_EnergyTable,3,FALSE),0))","v":0},{"$f":"IF(ISERROR(Tab_LoadsOverallConsumption[[#This Row],[Kosten\n'[€']]]/H$6),0,Tab_LoadsOverallConsumption[[#This Row],[Kosten\n'[€']]]/H$6)","v":0},{"$f":"SUM(Verbrauchererfassung!M12*IFERROR(VLOOKUP(Verbrauchererfassung!L12,EFaktoren,5,FALSE),0),IFERROR(Verbrauchererfassung!P12*VLOOKUP(Verbrauchererfassung!O12,EFaktoren,5,FALSE),0),Verbrauchererfassung!S12*IFERROR(VLOOKUP(Verbrauchererfassung!R12,EFaktoren,5,FALSE),0),Verbrauchererfassung!V12*IFERROR(VLOOKUP(Verbrauchererfassung!U12,EFaktoren,5,FALSE),0),Verbrauchererfassung!Y12*IFERROR(VLOOKUP(Verbrauchererfassung!X12,EFaktoren,5,FALSE),0),Verbrauchererfassung!AB12*IFERROR(VLOOKUP(Verbrauchererfassung!AA12,EFaktoren,5,FALSE),0),Verbrauchererfassung!AE12*IFERROR(VLOOKUP(Verbrauchererfassung!AD12,EFaktoren,5,FALSE),0),Verbrauchererfassung!AH12*IFERROR(VLOOKUP(Verbrauchererfassung!AG12,EFaktoren,5,FALSE),0))*0.001","v":0},{"$f":"IF(ISERROR(Tab_LoadsOverallConsumption[[#This Row],[CO2 \n'[t']]]/J$6),\"nv\",Tab_LoadsOverallConsumption[[#This Row],[CO2 \n'[t']]]/J$6)","v":"nv"}]
[null,{"$f":"Verbrauchererfassung!B13","v":6},{"$f":"Verbrauchererfassung!C13","v":0},null,{"$f":"Verbrauchererfassung!D13","v":0},{"$f":"SUM(Verbrauchererfassung!L13:AH13)","v":0},{"$f":"IF(ISERROR(Tab_LoadsOverallConsumption[[#This Row],[Verbrauch\n'[kWh']]]/F$6),0,Tab_LoadsOverallConsumption[[#This Row],[Verbrauch\n'[kWh']]]/F$6)","v":0},{"$f":"SUM(Verbrauchererfassung!M13 * IFERROR(VLOOKUP(Verbrauchererfassung!L13,EB_EnergyTable,3,FALSE),0),IFERROR(Verbrauchererfassung!P13 * VLOOKUP(Verbrauchererfassung!O13,EB_EnergyTable,3,FALSE),0),Verbrauchererfassung!S13 * IFERROR(VLOOKUP(Verbrauchererfassung!R13,EB_EnergyTable,3,FALSE),0),Verbrauchererfassung!V13 * IFERROR(VLOOKUP(Verbrauchererfassung!U13,EB_EnergyTable,3,FALSE),0),Verbrauchererfassung!Y13 * IFERROR(VLOOKUP(Verbrauchererfassung!X13,EB_EnergyTable,3,FALSE),0),Verbrauchererfassung!AB13 * IFERROR(VLOOKUP(Verbrauchererfassung!AA13,EB_EnergyTable,3,FALSE),0),Verbrauchererfassung!AE13 * IFERROR(VLOOKUP(Verbrauchererfassung!AD13,EB_EnergyTable,3,FALSE),0),Verbrauchererfassung!AH13 * IFERROR(VLOOKUP(Verbrauchererfassung!AG13,EB_EnergyTable,3,FALSE),0))","v":0},{"$f":"IF(ISERROR(Tab_LoadsOverallConsumption[[#This Row],[Kosten\n'[€']]]/H$6),0,Tab_LoadsOverallConsumption[[#This Row],[Kosten\n'[€']]]/H$6)","v":0},{"$f":"SUM(Verbrauchererfassung!M13*IFERROR(VLOOKUP(Verbrauchererfassung!L13,EFaktoren,5,FALSE),0),IFERROR(Verbrauchererfassung!P13*VLOOKUP(Verbrauchererfassung!O13,EFaktoren,5,FALSE),0),Verbrauchererfassung!S13*IFERROR(VLOOKUP(Verbrauchererfassung!R13,EFaktoren,5,FALSE),0),Verbrauchererfassung!V13*IFERROR(VLOOKUP(Verbrauchererfassung!U13,EFaktoren,5,FALSE),0),Verbrauchererfassung!Y13*IFERROR(VLOOKUP(Verbrauchererfassung!X13,EFaktoren,5,FALSE),0),Verbrauchererfassung!AB13*IFERROR(VLOOKUP(Verbrauchererfassung!AA13,EFaktoren,5,FALSE),0),Verbrauchererfassung!AE13*IFERROR(VLOOKUP(Verbrauchererfassung!AD13,EFaktoren,5,FALSE),0),Verbrauchererfassung!AH13*IFERROR(VLOOKUP(Verbrauchererfassung!AG13,EFaktoren,5,FALSE),0))*0.001","v":0},{"$f":"IF(ISERROR(Tab_LoadsOverallConsumption[[#This Row],[CO2 \n'[t']]]/J$6),\"nv\",Tab_LoadsOverallConsumption[[#This Row],[CO2 \n'[t']]]/J$6)","v":"nv"}]
[null,{"$f":"Verbrauchererfassung!B14","v":7},{"$f":"Verbrauchererfassung!C14","v":0},null,{"$f":"Verbrauchererfassung!D14","v":0},{"$f":"SUM(Verbrauchererfassung!L14:AH14)","v":0},{"$f":"IF(ISERROR(Tab_LoadsOverallConsumption[[#This Row],[Verbrauch\n'[kWh']]]/F$6),0,Tab_LoadsOverallConsumption[[#This Row],[Verbrauch\n'[kWh']]]/F$6)","v":0},{"$f":"SUM(Verbrauchererfassung!M14 * IFERROR(VLOOKUP(Verbrauchererfassung!L14,EB_EnergyTable,3,FALSE),0),IFERROR(Verbrauchererfassung!P14 * VLOOKUP(Verbrauchererfassung!O14,EB_EnergyTable,3,FALSE),0),Verbrauchererfassung!S14 * IFERROR(VLOOKUP(Verbrauchererfassung!R14,EB_EnergyTable,3,FALSE),0),Verbrauchererfassung!V14 * IFERROR(VLOOKUP(Verbrauchererfassung!U14,EB_EnergyTable,3,FALSE),0),Verbrauchererfassung!Y14 * IFERROR(VLOOKUP(Verbrauchererfassung!X14,EB_EnergyTable,3,FALSE),0),Verbrauchererfassung!AB14 * IFERROR(VLOOKUP(Verbrauchererfassung!AA14,EB_EnergyTable,3,FALSE),0),Verbrauchererfassung!AE14 * IFERROR(VLOOKUP(Verbrauchererfassung!AD14,EB_EnergyTable,3,FALSE),0),Verbrauchererfassung!AH14 * IFERROR(VLOOKUP(Verbrauchererfassung!AG14,EB_EnergyTable,3,FALSE),0))","v":0},{"$f":"IF(ISERROR(Tab_LoadsOverallConsumption[[#This Row],[Kosten\n'[€']]]/H$6),0,Tab_LoadsOverallConsumption[[#This Row],[Kosten\n'[€']]]/H$6)","v":0},{"$f":"SUM(Verbrauchererfassung!M14*IFERROR(VLOOKUP(Verbrauchererfassung!L14,EFaktoren,5,FALSE),0),IFERROR(Verbrauchererfassung!P14*VLOOKUP(Verbrauchererfassung!O14,EFaktoren,5,FALSE),0),Verbrauchererfassung!S14*IFERROR(VLOOKUP(Verbrauchererfassung!R14,EFaktoren,5,FALSE),0),Verbrauchererfassung!V14*IFERROR(VLOOKUP(Verbrauchererfassung!U14,EFaktoren,5,FALSE),0),Verbrauchererfassung!Y14*IFERROR(VLOOKUP(Verbrauchererfassung!X14,EFaktoren,5,FALSE),0),Verbrauchererfassung!AB14*IFERROR(VLOOKUP(Verbrauchererfassung!AA14,EFaktoren,5,FALSE),0),Verbrauchererfassung!AE14*IFERROR(VLOOKUP(Verbrauchererfassung!AD14,EFaktoren,5,FALSE),0),Verbrauchererfassung!AH14*IFERROR(VLOOKUP(Verbrauchererfassung!AG14,EFaktoren,5,FALSE),0))*0.001","v":0},{"$f":"IF(ISERROR(Tab_LoadsOverallConsumption[[#This Row],[CO2 \n'[t']]]/J$6),\"nv\",Tab_LoadsOverallConsumption[[#This Row],[CO2 \n'[t']]]/J$6)","v":"nv"}]
[null,{"$f":"Verbrauchererfassung!B15","v":8},{"$f":"Verbrauchererfassung!C15","v":0},null,{"$f":"Verbrauchererfassung!D15","v":0},{"$f":"SUM(Verbrauchererfassung!L15:AH15)","v":0},{"$f":"IF(ISERROR(Tab_LoadsOverallConsumption[[#This Row],[Verbrauch\n'[kWh']]]/F$6),0,Tab_LoadsOverallConsumption[[#This Row],[Verbrauch\n'[kWh']]]/F$6)","v":0},{"$f":"SUM(Verbrauchererfassung!M15 * IFERROR(VLOOKUP(Verbrauchererfassung!L15,EB_EnergyTable,3,FALSE),0),IFERROR(Verbrauchererfassung!P15 * VLOOKUP(Verbrauchererfassung!O15,EB_EnergyTable,3,FALSE),0),Verbrauchererfassung!S15 * IFERROR(VLOOKUP(Verbrauchererfassung!R15,EB_EnergyTable,3,FALSE),0),Verbrauchererfassung!V15 * IFERROR(VLOOKUP(Verbrauchererfassung!U15,EB_EnergyTable,3,FALSE),0),Verbrauchererfassung!Y15 * IFERROR(VLOOKUP(Verbrauchererfassung!X15,EB_EnergyTable,3,FALSE),0),Verbrauchererfassung!AB15 * IFERROR(VLOOKUP(Verbrauchererfassung!AA15,EB_EnergyTable,3,FALSE),0),Verbrauchererfassung!AE15 * IFERROR(VLOOKUP(Verbrauchererfassung!AD15,EB_EnergyTable,3,FALSE),0),Verbrauchererfassung!AH15 * IFERROR(VLOOKUP(Verbrauchererfassung!AG15,EB_EnergyTable,3,FALSE),0))","v":0},{"$f":"IF(ISERROR(Tab_LoadsOverallConsumption[[#This Row],[Kosten\n'[€']]]/H$6),0,Tab_LoadsOverallConsumption[[#This Row],[Kosten\n'[€']]]/H$6)","v":0},{"$f":"SUM(Verbrauchererfassung!M15*IFERROR(VLOOKUP(Verbrauchererfassung!L15,EFaktoren,5,FALSE),0),IFERROR(Verbrauchererfassung!P15*VLOOKUP(Verbrauchererfassung!O15,EFaktoren,5,FALSE),0),Verbrauchererfassung!S15*IFERROR(VLOOKUP(Verbrauchererfassung!R15,EFaktoren,5,FALSE),0),Verbrauchererfassung!V15*IFERROR(VLOOKUP(Verbrauchererfassung!U15,EFaktoren,5,FALSE),0),Verbrauchererfassung!Y15*IFERROR(VLOOKUP(Verbrauchererfassung!X15,EFaktoren,5,FALSE),0),Verbrauchererfassung!AB15*IFERROR(VLOOKUP(Verbrauchererfassung!AA15,EFaktoren,5,FALSE),0),Verbrauchererfassung!AE15*IFERROR(VLOOKUP(Verbrauchererfassung!AD15,EFaktoren,5,FALSE),0),Verbrauchererfassung!AH15*IFERROR(VLOOKUP(Verbrauchererfassung!AG15,EFaktoren,5,FALSE),0))*0.001","v":0},{"$f":"IF(ISERROR(Tab_LoadsOverallConsumption[[#This Row],[CO2 \n'[t']]]/J$6),\"nv\",Tab_LoadsOverallConsumption[[#This Row],[CO2 \n'[t']]]/J$6)","v":"nv"}]
[null,{"$f":"Verbrauchererfassung!B16","v":9},{"$f":"Verbrauchererfassung!C16","v":0},null,{"$f":"Verbrauchererfassung!D16","v":0},{"$f":"SUM(Verbrauchererfassung!L16:AH16)","v":0},{"$f":"IF(ISERROR(Tab_LoadsOverallConsumption[[#This Row],[Verbrauch\n'[kWh']]]/F$6),0,Tab_LoadsOverallConsumption[[#This Row],[Verbrauch\n'[kWh']]]/F$6)","v":0},{"$f":"SUM(Verbrauchererfassung!M16 * IFERROR(VLOOKUP(Verbrauchererfassung!L16,EB_EnergyTable,3,FALSE),0),IFERROR(Verbrauchererfassung!P16 * VLOOKUP(Verbrauchererfassung!O16,EB_EnergyTable,3,FALSE),0),Verbrauchererfassung!S16 * IFERROR(VLOOKUP(Verbrauchererfassung!R16,EB_EnergyTable,3,FALSE),0),Verbrauchererfassung!V16 * IFERROR(VLOOKUP(Verbrauchererfassung!U16,EB_EnergyTable,3,FALSE),0),Verbrauchererfassung!Y16 * IFERROR(VLOOKUP(Verbrauchererfassung!X16,EB_EnergyTable,3,FALSE),0),Verbrauchererfassung!AB16 * IFERROR(VLOOKUP(Verbrauchererfassung!AA16,EB_EnergyTable,3,FALSE),0),Verbrauchererfassung!AE16 * IFERROR(VLOOKUP(Verbrauchererfassung!AD16,EB_EnergyTable,3,FALSE),0),Verbrauchererfassung!AH16 * IFERROR(VLOOKUP(Verbrauchererfassung!AG16,EB_EnergyTable,3,FALSE),0))","v":0},{"$f":"IF(ISERROR(Tab_LoadsOverallConsumption[[#This Row],[Kosten\n'[€']]]/H$6),0,Tab_LoadsOverallConsumption[[#This Row],[Kosten\n'[€']]]/H$6)","v":0},{"$f":"SUM(Verbrauchererfassung!M16*IFERROR(VLOOKUP(Verbrauchererfassung!L16,EFaktoren,5,FALSE),0),IFERROR(Verbrauchererfassung!P16*VLOOKUP(Verbrauchererfassung!O16,EFaktoren,5,FALSE),0),Verbrauchererfassung!S16*IFERROR(VLOOKUP(Verbrauchererfassung!R16,EFaktoren,5,FALSE),0),Verbrauchererfassung!V16*IFERROR(VLOOKUP(Verbrauchererfassung!U16,EFaktoren,5,FALSE),0),Verbrauchererfassung!Y16*IFERROR(VLOOKUP(Verbrauchererfassung!X16,EFaktoren,5,FALSE),0),Verbrauchererfassung!AB16*IFERROR(VLOOKUP(Verbrauchererfassung!AA16,EFaktoren,5,FALSE),0),Verbrauchererfassung!AE16*IFERROR(VLOOKUP(Verbrauchererfassung!AD16,EFaktoren,5,FALSE),0),Verbrauchererfassung!AH16*IFERROR(VLOOKUP(Verbrauchererfassung!AG16,EFaktoren,5,FALSE),0))*0.001","v":0},{"$f":"IF(ISERROR(Tab_LoadsOverallConsumption[[#This Row],[CO2 \n'[t']]]/J$6),\"nv\",Tab_LoadsOverallConsumption[[#This Row],[CO2 \n'[t']]]/J$6)","v":"nv"}]
[null,{"$f":"Verbrauchererfassung!B17","v":10},{"$f":"Verbrauchererfassung!C17","v":0},null,{"$f":"Verbrauchererfassung!D17","v":0},{"$f":"SUM(Verbrauchererfassung!L17:AH17)","v":0},{"$f":"IF(ISERROR(Tab_LoadsOverallConsumption[[#This Row],[Verbrauch\n'[kWh']]]/F$6),0,Tab_LoadsOverallConsumption[[#This Row],[Verbrauch\n'[kWh']]]/F$6)","v":0},{"$f":"SUM(Verbrauchererfassung!M17 * IFERROR(VLOOKUP(Verbrauchererfassung!L17,EB_EnergyTable,3,FALSE),0),IFERROR(Verbrauchererfassung!P17 * VLOOKUP(Verbrauchererfassung!O17,EB_EnergyTable,3,FALSE),0),Verbrauchererfassung!S17 * IFERROR(VLOOKUP(Verbrauchererfassung!R17,EB_EnergyTable,3,FALSE),0),Verbrauchererfassung!V17 * IFERROR(VLOOKUP(Verbrauchererfassung!U17,EB_EnergyTable,3,FALSE),0),Verbrauchererfassung!Y17 * IFERROR(VLOOKUP(Verbrauchererfassung!X17,EB_EnergyTable,3,FALSE),0),Verbrauchererfassung!AB17 * IFERROR(VLOOKUP(Verbrauchererfassung!AA17,EB_EnergyTable,3,FALSE),0),Verbrauchererfassung!AE17 * IFERROR(VLOOKUP(Verbrauchererfassung!AD17,EB_EnergyTable,3,FALSE),0),Verbrauchererfassung!AH17 * IFERROR(VLOOKUP(Verbrauchererfassung!AG17,EB_EnergyTable,3,FALSE),0))","v":0},{"$f":"IF(ISERROR(Tab_LoadsOverallConsumption[[#This Row],[Kosten\n'[€']]]/H$6),0,Tab_LoadsOverallConsumption[[#This Row],[Kosten\n'[€']]]/H$6)","v":0},{"$f":"SUM(Verbrauchererfassung!M17*IFERROR(VLOOKUP(Verbrauchererfassung!L17,EFaktoren,5,FALSE),0),IFERROR(Verbrauchererfassung!P17*VLOOKUP(Verbrauchererfassung!O17,EFaktoren,5,FALSE),0),Verbrauchererfassung!S17*IFERROR(VLOOKUP(Verbrauchererfassung!R17,EFaktoren,5,FALSE),0),Verbrauchererfassung!V17*IFERROR(VLOOKUP(Verbrauchererfassung!U17,EFaktoren,5,FALSE),0),Verbrauchererfassung!Y17*IFERROR(VLOOKUP(Verbrauchererfassung!X17,EFaktoren,5,FALSE),0),Verbrauchererfassung!AB17*IFERROR(VLOOKUP(Verbrauchererfassung!AA17,EFaktoren,5,FALSE),0),Verbrauchererfassung!AE17*IFERROR(VLOOKUP(Verbrauchererfassung!AD17,EFaktoren,5,FALSE),0),Verbrauchererfassung!AH17*IFERROR(VLOOKUP(Verbrauchererfassung!AG17,EFaktoren,5,FALSE),0))*0.001","v":0},{"$f":"IF(ISERROR(Tab_LoadsOverallConsumption[[#This Row],[CO2 \n'[t']]]/J$6),\"nv\",Tab_LoadsOverallConsumption[[#This Row],[CO2 \n'[t']]]/J$6)","v":"nv"}]

{"sheet":"Messmittel","index":5,"n_rows":19,"n_cols":10,"rows_kept":19,"cut":false,"hidden":false,"merged":[]}
[null,null,null,null,null,null,null,null,null,{"$f":"Einleitung!$C$1","v":"Version 3.2 - 11.11.2020"}]
[]
[null,"Messmittel"]
[]
[null,"Messsystem/ Messmittel","Energieträger","Messprinzip/ -art","Baujahr","geeicht/\nkalibriert","Grad der Genauigkeit/ Kalibrierung"]
[null,"Bitte Messmittelliste zuerst ausfüllen…       dieser Text kann gelöscht werden",null,null,null,null," "]
[null,"….",null,null,null,null," "]
[null,"…."]
[null,"…."]
[null,"…."]
[null,"…."]
[null,"…."]
[]
[]
[]
[null,"Zeilen können auch manuell (innerhalb der Tabelle) eingefügt werden.",null,null,null,null,"<2%"]
[null,"Zeilen innerhalb der Tabelle können auch nach Belieben gelöscht oder verschoben werden.",null,null,null,null,"<5%"]
[null,null,null,null,null,null,"<10%"]
[null,null,null,null,null,null,"<20%"]

{"sheet":"Energieeinsparprogramm","index":6,"n_rows":6,"n_cols":15,"rows_kept":6,"cut":false,"hidden":false,"merged":[[4,1,4,6],[4,7,4,10],[4,11,4,14],[2,6,2,7]]}
[8,null,null,null,null,null,null,null,{"$f":"Einleitung!$C$1","v":"Version 3.2 - 11.11.2020"}]
[]
[null,"Energie-Einsparprogramm",null,null,null,null,"Doppelklick auf Zeile öffnet Aktionsplan",null,"höchste Nummer:",0,null,"nur hier eintragen!"]
[]
[null,"allgemeine Informationen",null,null,null,null,null,"Potentialabschätzung",null,null,null,"Umsetzung"]
[null,"Nr.","WS","Gesellschaft","Standort","betroffener Bereich","geplante Effizienzmaßnahme","Einsparpotenzial [€/a]","Einsparpotenzial [kWh/a]","geplanter Invest [€]","geplanter ROI [Jahre]","Priorität","verantwortlich","Frist","Projektstatus"]

{"sheet":"Faktoren","index":7,"n_rows":35,"n_cols":14,"rows_kept":35,"cut":false,"hidden":false,"merged":[[4,4,4,6],[4,2,5,2],[4,3,5,3]]}
[null,null,null,null,null,null,null,null,null,null,null,null,null,{"$f":"Einleitung!$C$1","v":"Version 3.2 - 11.11.2020"}]
[]
[null,null,"Emissionsfaktoren"]
[]
[null,null,"Energie(träger)","Literaturwerte\n in t CO2/GJ","Emissionsfaktoren in kg CO2/ kWh"]
[null,null,null,null,"Literaturwerte","eigene Werte","Berechnung erfolgt mit"]
[null," □","Strom",null,0.56299999999999994,null,{"$f":"IF(NOT(ISBLANK(F7)),F7,E7)","v":0.56299999999999994}]
[null,"#","Ökostrom",null,1.7000000000000001E-2,null,{"$f":"IF(NOT(ISBLANK(F8)),F8,E8)","v":1.7000000000000001E-2}]
[null,"#","Fernwärme",null,0.21,null,0.21]
[null,"~","Erdgas L",5.6254999999999999E-2,0.20250179985601152,null,0.20250179985601152]
[null,"~","Erdgas H",5.8155900000000003E-2,0.20934449244060474,null,0.20934449244060474]
[null,"~","Flüssiggas",6.4199999999999993E-2,0.23110151187904962,null,0.23110151187904962]
[null,"*","Heizöl EL",7.4099999999999999E-2,0.26673866090712739,null,0.26673866090712739]
[null,"*","Heizöl S",0.80900000000000005,2.912167026637869,null,2.912167026637869]
[null,"*","Vollwertkohle",9.4E-2,0.33837293016558673,null,0.33837293016558673]
[null,"*","Braunkohle",0.10100000000000001,0.36357091432685384,null,0.36357091432685384]
[null,"*","Steinkohlekoks",0.105,0.37796976241900648,null,0.37796976241900648]
[null,"*","Benzin",6.93E-2,0.24946004319654425,null,0.24946004319654425]
[null,"*","Diesel",7.4099999999999999E-2,0.26673866090712739,null,0.26673866090712739]
[null,null,"Biomasse",0,0,null,0]
[null,null,"Holzhackschnitzel",0,0,null,0]
[null,null,"Holzpellets",0,0,null,0]
[null,null,"Bio-Fernwärme",0,0,null,0]
[null,null,"Druckgase",null,null,null,0]
[null,null,"Kälte",null,null,null,0]
[null,null,null,null,null,null,{"$f":"IF(F26>0,F26,E26)","v":0}]
[null,null,null,null,null,null,0]
[]
[null,null,"Quellenangaben:"]
[null,null,"□ Umweltbundesamt; \"Entwicklung der spezifischen Kohlendioxid-Emissionen des deutschen Strommix in den Jahren 1990 bis 2013\";  Dessau; Juli 2014"]
[null,null,"* Monitoring Verordnung der europäischen Kommission, VERORDNUNG (EU) Nr. 600/2012 DER KOMMISSION vom 21. Juni 2012"]
[null,null,"über die Prüfung von Treibhausgasemissionsberichten und Tonnenkilometerberichten sowie die Akkreditierung von Prüfstellen"]
[null,null,"gemäß der Richtlinie 2003/87/EG des Europäischen Parlaments und des Rates"]
[null,null,"~ GEMIS Datenbank Version 4.9 (Öko-Institut)"]
[null,null,"# http://www5.umweltbundesamt.at/emas/co2mon/co2mon.htm ; Stand: 06.01.2015"]

{"sheet":"Rechner","index":8,"n_rows":32,"n_cols":14,"rows_kept":32,"cut":false,"hidden":false,"merged":[[5,4,6,4]]}
[null,null,null,null,null,null,null,null,null,null,null,null,null,{"$f":"Einleitung!$C$1","v":"Version 3.2 - 11.11.2020"}]
[]
[null,"Umrechnungshilfen"]
[]
[null,"Von","nach"]
[null,"GJ","kWh",null,"zur Umrechnung benötigte Angaben",null,null,"Literaturwerte:"]
[null,1,{"$f":"B7*277.78","v":277.77999999999997},null,null,null,null,"Gase","MJ / Nm3",null,null,"kWh / Nm3"]
[null,null,null,null,null,null,"~","Erdgas H",35.8371,null,null,{"$f":"I8*2.778*1000000/1000/10000","v":9.9555463799999995}]
[null,"Von","nach",null,null,null,"~","Erdgas L",34.09075,null,null,{"$f":"I9*2.778*1000000/1000/10000","v":9.4704103499999999}]
[null,"Nm³","kWh",null,"GJ / 1.000 Nm³",null,"~","Grubengas",9.9547197000000001,null,null,{"$f":"I10*2.778*1000000/1000/10000","v":2.7654211326600002}]
[null,1,{"$f":"B11*E11/1000*277.78","v":10.000079999999999},null,36,null,"~","Bio-Gas",38.624454999999998,null,null,10.729873598999999]
[null,null,null,null,null,null,null,"Flüssigkeiten","MJ / kg","kWh / kg","kg / l ~","kWh / l"]
[null,null,null,null,null,null,"Δ","Heizöl EL/ Diesel",43,{"$f":"I13*2.778*1000000/1000/10000","v":11.945400000000001},0.84,{"$f":"J13*K13","v":10.034136}]
[null,null,null,null,"GJ/ t",null,"Δ","Heizöl S",42.3,{"$f":"I14*2.778*1000000/1000/10000","v":11.75094},0.86499999999999999,{"$f":"J14*K14","v":10.164563100000001}]
[null,"Von","nach",null,40.1,null,"Δ","Benzin",44.3,12.30654,0.75,9.2299050000000005]
[null,"Liter","kWh",null,null,null,"Δ","Flüssiggas",47.3,13.139939999999999,0.69110000000000005,9.081012534000001]
[null,1,{"$f":"B17*E18/1000*E15*277.78","v":8.3542334999999994},null,"kg/ l",null,"Δ","Bio-Diesel",27,7.5006000000000004,0.83199999999999996,6.2404992000000004]
[null,null,null,null,0.75,null,null,"Feststoffe","MJ / kg",null,null,"kWh / kg"]
[null,null,null,null,null,null,"Δ","Vollwertkohle",30.65,null,null,{"$f":"I19*2.778*1000000/1000/10000","v":8.5145699999999991}]
[null,null,"€/ kWh",null,"€/ l",null,"*","Steinkohle",30.65,null,null,{"$f":"I20*2.778*1000000/1000/10000","v":8.5145699999999991}]
[null,null,{"$f":"E21/(C17/B17)","v":0.18553467532359494},null,1.55,null,"*","Braunkohle",11.9,null,null,3.3058199999999998]
[null,null,null,null,null,null,"Δ","Steinkohlekoks",29.05,null,null,8.0700899999999987]
[null,"Von","nach",null,null,null,"~","Holzhackschnitzel",14.595625,null,null,4.054664625]
[null,"t CO2 / GJ","kg CO2 / kWh",null,null,null,"~","Holzpellets",17.756374999999998,null,null,4.9327209749999996]
[null,1,{"$f":"B25/277.78*1000","v":3.5999712002303985},null,null,null,"Δ","Biomasse",11.6,null,null,3.2224800000000005]
[]
[null,null,null,null,null,null,null,"Quellenangaben:"]
[null,null,null,null,null,null,null,"Δ Monitoring Verordnung der europäischen Kommission, VERORDNUNG (EU) Nr. 600/2012 DER KOMMISSION vom 21. Juni 2012"]
[null,null,null,null,null,null,null,"über die Prüfung von Treibhausgasemissionsberichten und Tonnenkilometerberichten sowie die Akkreditierung von Prüfstellen"]
[null,null,null,null,null,null,null,"gemäß der Richtlinie 2003/87/EG des Europäischen Parlaments und des Rates"]
[null,null,null,null,null,null,null,"* Walter; \"Tabellenbuch Chemietechnik\"; 9. Auflage 2014; ISBN 978-3-8085-7089-0"]
[null,null,null,null,null,null,null,"~ GEMIS Datenbank Version 4.9 (Öko Institut)"]

{"sheet":"template","index":9,"n_rows":10,"n_cols":11,"rows_kept":10,"cut":false,"hidden":true,"merged":[]}
[]
[]
[null,"Titel"]
[null,null,null,null,null,"Verbrauch\n[kWh]","Kosten pro KWh","Kosten\n[€]","CO2 Faktor","CO2 \n[t]"]
[null,null,null,null,"Bezugsmengen laut Eingangsbilanz:",{"$f":"VLOOKUP(B3,EB_EnergyTable,2,FALSE)","v":{"$error":"#N/A"}},{"$f":"VLOOKUP(B3,EB_EnergyTable,3,FALSE)","v":{"$error":"#N/A"}},{"$f":"VLOOKUP(B3,EB_EnergyTable,5,FALSE)","v":{"$error":"#N/A"}},{"$f":"VLOOKUP(B3,EFaktoren,5,FALSE)*0.001","v":{"$error":"#N/A"}},{"$f":"VLOOKUP(B3,EB_EnergyTable,7,FALSE)","v":{"$error":"#N/A"}}]
[null,null,null,null,"Differenz zur Verbrauchermessung:",{"$f":"F5-F8","v":{"$error":"#N/A"}},null,{"$f":"H5-H8","v":{"$error":"#N/A"}},null,{"$f":"IF(ISNUMBER(J5),J5-J8,\"nv\")","v":"nv"}]
[]
[null,null,null,null,"Summen der Verbrauchermessung:",{"$f":"SUM(F10:F10)","v":0},{"$f":"SUM(Tab_template[Anteil am Gesamt-verbrauch])","v":0},{"$f":"SUM(H10:H10)","v":{"$error":"#N/A"}},{"$f":"SUM(Tab_template[Kostenanteil])","v":0},{"$f":"SUM(J10:J10)","v":0},{"$f":"SUM(Tab_template[CO2-Anteil])","v":0}]
[null,"Verbraucher","Unterverbraucher","Kennung","Messmittel","Verbrauch","Anteil am Gesamt-verbrauch","Kosten","Kostenanteil","CO2","CO2-Anteil"]
[null,null,null,null,null,null,{"$f":"IFERROR(Tab_template[[#This Row],[Verbrauch]]/F$5,0)","v":0},{"$f":"Tab_template[[#This Row],[Verbrauch]]*G$5","v":{"$error":"#N/A"}},{"$f":"IFERROR(Tab_template[[#This Row],[Kosten]]/H$5,0)","v":0},{"$f":"IFERROR(Tab_template[[#This Row],[Verbrauch]]*I$5,\"nv\")","v":"nv"},{"$f":"IFERROR(Tab_template[[#This Row],[CO2]]/J$5,\"nv\")","v":"nv"}]

{"sheet":"template_activity","index":10,"n_rows":50,"n_cols":46,"rows_kept":50,"cut":false,"hidden":true,"merged":[[49,1,49,20],[49,21,49,30],[44,1,44,40],[45,1,45,40],[46,1,46,40],[47,1,47,40],[48,1,48,20],[48,21,48,30],[42,1,42,10],[42,11,42,20],[42,21,42,30],[42,31,42,40],[43,1,43,10],[43,11,43,20],[43,21,43,30],[43,31,43,40],[41,1,41,40],[34,1,34,10],[34,11,34,29],[35,1,35,10],[35,11,35,29],[36,1,36,10],[36,11,36,20],[37,1,37,10],[37,11,37,29],[38,1,38,40],[39,1,39,40],[40,1,40,40],[33,1,33,10],[33,11,33,40],[24,1,24,40],[25,1,25,40],[26,1,26,40],[27,1,27,40],[28,1,28,40],[29,1,29,40],[30,1,30,40],[31,1,31,10],[31,11,31,40],[32,1,32,10],[32,11,32,40],[22,1,22,10],[22,11,22,20],[22,21,22,30],[22,31,22,40],[23,1,23,10],[23,11,23,20],[23,21,23,30],[23,31,23,40],[21,1,21,40],[12,1,12,40],[13,1,13,40],[14,1,14,10],[14,11,14,20],[15,1,15,10],[15,11,15,30],[16,1,16,40],[17,1,17,40],[18,1,18,40],[19,1,19,40],[20,1,20,40],[11,1,11,40],[5,1,5,10],[5,11,5,20],[5,21,5,30],[5,31,5,40],[6,1,6,40],[7,1,7,40],[8,1,8,20],[8,21,8,40],[9,1,9,20],[9,21,9,40],[10,1,10,40],[1,1,1,6],[1,7,1,34],[1,35,1,40],[3,1,3,40],[4,1,4,10],[4,11,4,20],[4,21,4,30],[4,31,4,40]]}
[]
[null,null,null,null,null,null,null,{"$f":"\"Aktionsplan \"&B6","v":"Aktionsplan "},null,null,null,null,null,null,null,null,null,null,null,null,null,null,null,null,null,null,null,null,null,null,null,null,null,null,null,null,null,null,null,null,null,null,null,"4/4-Spalten","3/4-Spalten","2/4-Spalten"]
[]
[null,"Maßnahmenentwicklung und -beschreibung"]
[null,"Nr. Aktionsplan",null,null,null,null,null,null,null,null,null,"Erstaufnahme am",null,null,null,null,null,null,null,null,null,"letzte Änderung am",null,null,null,null,null,null,null,null,null,"letzter Bearbeiter"]
[null,null,null,null,null,null,null,null,null,null,null,null,null,null,null,null,null,null,null,null,null,null,null,null,null,null,null,null,null,null,null,null,null,null,null,null,null,null,null,null,null,null,null,null,null,{"$f":"V10","v":0}]
[null,"Gesellschaft"]
[null,null,null,null,null,null,null,null,null,null,null,null,null,null,null,null,null,null,null,null,null,null,null,null,null,null,null,null,null,null,null,null,null,null,null,null,null,null,null,null,null,null,null,{"$f":"B8","v":0}]
[null,"Standort",null,null,null,null,null,null,null,null,null,null,null,null,null,null,null,null,null,null,null,"betroffener Bereich/Abteilung"]
[]
[null,"Konkretes Ziel der Effizienzmaßnahme"]
[null,null,null,null,null,null,null,null,null,null,null,null,null,null,null,null,null,null,null,null,null,null,null,null,null,null,null,null,null,null,null,null,null,null,null,null,null,null,null,null,null,"t","Bitte so beschreiben, dass klar wird, was gemacht wird.",{"$f":"B12","v":0}]
[null,"Zustand vor Maßnahmenumsetzung"]
[null,null,null,null,null,null,null,null,null,null,null,null,null,null,null,null,null,null,null,null,null,null,null,null,null,null,null,null,null,null,null,null,null,null,null,null,null,null,null,null,null,null,null,{"$f":"B14","v":0}]
[null,"Energetische Ausgangsbasis",null,null,null,null,null,null,null,null,null,"Einheit"]
[null,null,null,null,null,null,null,null,null,null,null,null,null,null,null,null,null,null,null,null,null,null,null,null,null,null,null,null,null,null,null,null,null,null,null,null,null,null,null,null,null,"t","Hier ist die energetische Ausgangsbasis vor der Umsetzung der Effizienzmaßnahme zu erfassen.",null,null,{"$f":"L16","v":0}]
[null,"Wie wird die energetische Ausgangsbasis bestimmt?"]
[null,null,null,null,null,null,null,null,null,null,null,null,null,null,null,null,null,null,null,null,null,null,null,null,null,null,null,null,null,null,null,null,null,null,null,null,null,null,null,null,null,"t","Hier sind Angaben zur Formel, zum Messaufbau, zur Berechnung etc. möglich.",{"$f":"B18","v":0}]
[null,"Ermittlungsart der energetischen Ausgangsbasis"]
[null,null,null,null,null,null,null,null,null,null,null,null,null,null,null,null,null,null,null,null,null,null,null,null,null,null,null,null,null,null,null,null,null,null,null,null,null,null,null,null,null,"t","Bitte einen Wert aus der Liste nutzen oder passenden Freitext eingeben."]
[null,"Unter welchen Bedingungen findet die Messung statt?"]
[null,null,null,null,null,null,null,null,null,null,null,null,null,null,null,null,null,null,null,null,null,null,null,null,null,null,null,null,null,null,null,null,null,null,null,null,null,null,null,null,null,"t","Hier sind Angaben zu relevanten Einflussgrößen/Rahmenbedingungen von Interesse, bspw: Einstellungen Messgerät, verarbeitete Mengen, Umgebungsbedingungen, Temperatureinflüsse etc.",{"$f":"B22","v":0}]
[null,"geplante Investitionskosten",null,null,null,null,null,null,null,null,null,"Einsparpotenzial (€/a)",null,null,null,null,null,null,null,null,null,"Einsparpotenzial (kWh/a)",null,null,null,null,null,null,null,null,null,"ROI (statisch)"]
[null,null,null,null,null,null,null,null,null,null,null,null,null,null,null,null,null,null,null,null,null,null,null,null,null,null,null,null,null,null,null,{"$f":"IFERROR(B24/L24,0)","v":0},null,null,null,null,null,null,null,null,null,"t","ROI <= 3, ROI > 3 und <=5, ROI > 5",null,null,{"$f":"L24","v":0}]
[null,"Erklärung zu Investitionskosten"]
[null,null,null,null,null,null,null,null,null,null,null,null,null,null,null,null,null,null,null,null,null,null,null,null,null,null,null,null,null,null,null,null,null,null,null,null,null,null,null,null,null,null,null,{"$f":"B26","v":0}]
[null,"Herleitung des Einsparpotenzials"]
[null,null,null,null,null,null,null,null,null,null,null,null,null,null,null,null,null,null,null,null,null,null,null,null,null,null,null,null,null,null,null,null,null,null,null,null,null,null,null,null,null,null,null,{"$f":"B28","v":0},null,{"$f":"L28","v":0}]
[]
[null,"Maßnahmenumsetzung"]
[null,"Schritte zur Maßnahmenumsetzung"]
[null,"Schritt 1",null,null,null,null,null,null,null,null,null,null,null,null,null,null,null,null,null,null,null,null,null,null,null,null,null,null,null,null,null,null,null,null,null,null,null,null,null,null,null,null,null,null,{"$f":"L32","v":0}]
[null,"Schritt 2",null,null,null,null,null,null,null,null,null,null,null,null,null,null,null,null,null,null,null,null,null,null,null,null,null,null,null,null,null,null,null,null,null,null,null,null,null,null,null,null,null,null,{"$f":"L33","v":0}]
[null,"Schritt 3",null,null,null,null,null,null,null,null,null,null,null,null,null,null,null,null,null,null,null,null,null,null,null,null,null,null,null,null,null,null,null,null,null,null,null,null,null,null,null,null,null,null,{"$f":"L34","v":0}]
[null,"Umsetzung bis",null,null,null,null,null,null,null,null,null,"Verantwortlich für Umsetzung"]
[null,null,null,null,null,null,null,null,null,null,null,null,null,null,null,null,null,null,null,null,null,null,null,null,null,null,null,null,null,null,null,null,null,null,null,null,null,null,null,null,null,null,null,null,null,{"$f":"L36","v":0}]
[null,"Neue energ. Ausgangsbasis",null,null,null,null,null,null,null,null,null,"Einheit"]
[null,null,null,null,null,null,null,null,null,null,null,null,null,null,null,null,null,null,null,null,null,null,null,null,null,null,null,null,null,null,null,null,null,null,null,null,null,null,null,null,null,null,null,null,null,{"$f":"L38","v":0}]
[null,"Wie wird die neue energetische Ausgangsbasis bestimmt?"]
[null,null,null,null,null,null,null,null,null,null,null,null,null,null,null,null,null,null,null,null,null,null,null,null,null,null,null,null,null,null,null,null,null,null,null,null,null,null,null,null,null,null,null,{"$f":"B40","v":0}]
[null,"Unter welchen Bedingungen findet die Messung statt?"]
[null,null,null,null,null,null,null,null,null,null,null,null,null,null,null,null,null,null,null,null,null,null,null,null,null,null,null,null,null,null,null,null,null,null,null,null,null,null,null,null,null,"t","Hier sind Angaben zu relevanten Einflussgrößen/Rahmenbedingungen von Interesse, bspw: Einstellungen Messgerät, verarbeitete Mengen, Umgebungsbedingungen, Temperatureinflüsse etc.",{"$f":"B42","v":0}]
[null,"tatsächliche Investitionskosten",null,null,null,null,null,null,null,null,null,"Realisierte Einsparung (€/a)",null,null,null,null,null,null,null,null,null,"Realisierte Einsparung (kWh/a)",null,null,null,null,null,null,null,null,null,"realisierter ROI"]
[null,null,null,null,null,null,null,null,null,null,null,null,null,null,null,null,null,null,null,null,null,null,null,null,null,null,null,null,null,null,null,{"$f":"IFERROR(B44/L44,0)","v":0}]
[null,"Abgelegte Dokumente zur Maßnahme"]
[null,null,null,null,null,null,null,null,null,null,null,null,null,null,null,null,null,null,null,null,null,null,null,null,null,null,null,null,null,null,null,null,null,null,null,null,null,null,null,null,null,null,null,{"$f":"B46","v":0}]
[null,"Sonstige Anmerkungen"]
[null,null,null,null,null,null,null,null,null,null,null,null,null,null,null,null,null,null,null,null,null,null,null,null,null,null,null,null,null,null,null,null,null,null,null,null,null,null,null,null,null,null,null,{"$f":"B48","v":0}]
[null,"Projektstatus",null,null,null,null,null,null,null,null,null,null,null,null,null,null,null,null,null,null,null,"Zielerreichung"]
[null,null,null,null,null,null,null,null,null,null,null,null,null,null,null,null,null,null,null,null,null,{"$f":"IFERROR(V44/V24,0)","v":0}]

{"sheet":"FormulaTemplate","index":11,"n_rows":1,"n_cols":15,"rows_kept":1,"cut":false,"hidden":true,"merged":[]}
[null,null,{"$f":"\"A\"&tabActivities[Nr.]","v":"A"},{"$f":"IFERROR(LEFT(INDIRECT($C1&\"!B8\"),30),\"\")","v":""},{"$f":"IFERROR(LEFT(INDIRECT($C1&\"!B10\"),30),\"\")","v":""},{"$f":"IFERROR(LEFT(INDIRECT($C1&\"!V10\"),30),\"\")","v":""},{"$f":"IFERROR(LEFT(INDIRECT($C1&\"!B12\"),30),\"\")","v":""},{"$f":"IFERROR(INDIRECT(C1&\"!L24\"),\"\")","v":""},{"$f":"IFERROR(INDIRECT(C1&\"!V24\"),\"\")","v":""},{"$f":"IFERROR(INDIRECT(C1&\"!B24\"),\"\")","v":""},{"$f":"IFERROR(INDIRECT(C1&\"!AF24\"),\"\")","v":""},null,{"$f":"IFERROR(INDIRECT(C1&\"!L36\"),\"\")","v":""},{"$f":"IFERROR(INDIRECT(C1&\"!B36\"),\"\")","v":""},{"$f":"IFERROR(INDIRECT(C1&\"!B50\"),\"\")","v":""}]